Supplier,Address Name,Invoice Date,Invoice Line Number,Tax Status,Tax Name,Cost Center Description,Budget Segment Description,Account Description,Invoice Line Amount
Mendip Media Group Ltd Tiverton,43725,01/04/2019,1,,,Other Corporate Programme Payments,Non-ringfenced Programme DEL,Transcriptions and Translation,"2,898.00"
Mendip Media Group Ltd Tiverton,43725,01/04/2019,2,,,Other Corporate Programme Payments,Non-ringfenced Programme DEL,Transcriptions and Translation,"15,819.12"
Mendip Media Group Ltd Tiverton,43725,01/04/2019,3,,,Other Corporate Programme Payments,Non-ringfenced Programme DEL,Transcriptions and Translation,"9,833.04"
Mendip Media Group Ltd Tiverton,43725,01/04/2019,4,STANDARD,GB_VAT,Other Corporate Programme Payments,Non-ringfenced Programme DEL,Transcriptions and Translation,"5,710.03"
ICS.AI Ltd Basingstoke,896137,13/03/2019,1,,,Solution Management,Non-ringfenced Programme DEL,IT services,"46,510.00"
ICS.AI Ltd Basingstoke,896137,13/03/2019,2,STANDARD,GB_VAT,Solution Management,Non-ringfenced Programme DEL,IT services,"9,302.00"
5 Paper Buildings,Christopher Julian Mark Carmichael ,01/04/2019,1,,,Organised Crime London,Non-ringfenced Programme DEL,Crown Court Graduated Fee Scheme,"14,440.00"
5 Paper Buildings,Christopher Julian Mark Carmichael ,01/04/2019,2,,,Organised Crime London,Non-ringfenced Programme DEL,Crown Court Graduated Fee Scheme,327.98
5 Paper Buildings,Christopher Julian Mark Carmichael ,01/04/2019,3,,,Organised Crime London,Non-ringfenced Programme DEL,Crown Court Graduated Fee Scheme,"2,166.00"
5 Paper Buildings,Christopher Julian Mark Carmichael ,01/04/2019,4,,,Organised Crime London,Non-ringfenced Programme DEL,Crown Court Graduated Fee Scheme,"13,300.00"
5 Paper Buildings,Christopher Julian Mark Carmichael ,01/04/2019,5,,,Organised Crime London,Non-ringfenced Programme DEL,Crown Court Graduated Fee Scheme,133.4
5 Paper Buildings,Christopher Julian Mark Carmichael ,01/04/2019,6,,,Organised Crime London,Non-ringfenced Programme DEL,Crown Court Graduated Fee Scheme,165
5 Paper Buildings,Christopher Julian Mark Carmichael ,01/04/2019,7,,,Organised Crime London,Non-ringfenced Programme DEL,Crown Court Graduated Fee Scheme,618.75
5 Paper Buildings,Christopher Julian Mark Carmichael ,01/04/2019,8,STANDARD,GB_VAT,Organised Crime London,Non-ringfenced Programme DEL,Crown Court Graduated Fee Scheme,"6,230.23"
5 Paper Buildings,Christopher Julian Mark Carmichael ,01/04/2019,1,,,Organised Crime London,Non-ringfenced Programme DEL,Crown Court Graduated Fee Scheme,"14,440.00"
5 Paper Buildings,Christopher Julian Mark Carmichael ,01/04/2019,2,,,Organised Crime London,Non-ringfenced Programme DEL,Crown Court Graduated Fee Scheme,149.73
5 Paper Buildings,Christopher Julian Mark Carmichael ,01/04/2019,3,,,Organised Crime London,Non-ringfenced Programme DEL,Crown Court Graduated Fee Scheme,"2,166.00"
5 Paper Buildings,Christopher Julian Mark Carmichael ,01/04/2019,4,,,Organised Crime London,Non-ringfenced Programme DEL,Crown Court Graduated Fee Scheme,"9,500.00"
5 Paper Buildings,Christopher Julian Mark Carmichael ,01/04/2019,5,STANDARD,GB_VAT,Organised Crime London,Non-ringfenced Programme DEL,Crown Court Graduated Fee Scheme,"5,251.15"
Harrington Street Chambers,Riding Henry ,08/04/2019,1,,,Mersey Cheshire Complex Casework Unit,Non-ringfenced Programme DEL,Crown Court Graduated Fee Scheme,"10,830.00"
Harrington Street Chambers,Riding Henry ,08/04/2019,2,,,Mersey Cheshire Complex Casework Unit,Non-ringfenced Programme DEL,Crown Court Graduated Fee Scheme,706.2
Harrington Street Chambers,Riding Henry ,08/04/2019,3,,,Mersey Cheshire Complex Casework Unit,Non-ringfenced Programme DEL,Crown Court Graduated Fee Scheme,"3,249.00"
Harrington Street Chambers,Riding Henry ,08/04/2019,4,,,Mersey Cheshire Complex Casework Unit,Non-ringfenced Programme DEL,Crown Court Graduated Fee Scheme,"15,620.00"
Harrington Street Chambers,Riding Henry ,08/04/2019,5,STANDARD,GB_VAT,Mersey Cheshire Complex Casework Unit,Non-ringfenced Programme DEL,Crown Court Graduated Fee Scheme,"6,081.04"
2 Hare Court Chambers -Chambers of Orlando Pownall,Glasgow Oliver ,23/04/2019,1,,,East of England Complex Casework Unit,Non-ringfenced Programme DEL,Crown Court Graduated Fee Scheme,"1,800.00"
2 Hare Court Chambers -Chambers of Orlando Pownall,Glasgow Oliver ,23/04/2019,2,,,East of England Complex Casework Unit,Non-ringfenced Programme DEL,Crown Court Graduated Fee Scheme,"1,005.33"
2 Hare Court Chambers -Chambers of Orlando Pownall,Glasgow Oliver ,23/04/2019,3,,,East of England Complex Casework Unit,Non-ringfenced Programme DEL,Crown Court Graduated Fee Scheme,"3,967.50"
2 Hare Court Chambers -Chambers of Orlando Pownall,Glasgow Oliver ,23/04/2019,4,,,East of England Complex Casework Unit,Non-ringfenced Programme DEL,Crown Court Graduated Fee Scheme,"14,200.00"
2 Hare Court Chambers -Chambers of Orlando Pownall,Glasgow Oliver ,23/04/2019,5,,,East of England Complex Casework Unit,Non-ringfenced Programme DEL,Crown Court Graduated Fee Scheme,"47,120.00"
2 Hare Court Chambers -Chambers of Orlando Pownall,Glasgow Oliver ,23/04/2019,6,,,East of England Complex Casework Unit,Non-ringfenced Programme DEL,Crown Court Graduated Fee Scheme,506.25
2 Hare Court Chambers -Chambers of Orlando Pownall,Glasgow Oliver ,23/04/2019,7,,,East of England Complex Casework Unit,Non-ringfenced Programme DEL,Crown Court Graduated Fee Scheme,244.4
2 Hare Court Chambers -Chambers of Orlando Pownall,Glasgow Oliver ,23/04/2019,8,,,East of England Complex Casework Unit,Non-ringfenced Programme DEL,Crown Court Graduated Fee Scheme,"15,870.00"
2 Hare Court Chambers -Chambers of Orlando Pownall,Glasgow Oliver ,23/04/2019,9,STANDARD,GB_VAT,East of England Complex Casework Unit,Non-ringfenced Programme DEL,Crown Court Graduated Fee Scheme,"16,942.70"
2 Hare Court Chambers -Chambers of Orlando Pownall,Przybylska Sarah ,23/04/2019,1,,,East of England Complex Casework Unit,Non-ringfenced Programme DEL,Crown Court Graduated Fee Scheme,"7,930.00"
2 Hare Court Chambers -Chambers of Orlando Pownall,Przybylska Sarah ,23/04/2019,2,,,East of England Complex Casework Unit,Non-ringfenced Programme DEL,Crown Court Graduated Fee Scheme,115
2 Hare Court Chambers -Chambers of Orlando Pownall,Przybylska Sarah ,23/04/2019,3,,,East of England Complex Casework Unit,Non-ringfenced Programme DEL,Crown Court Graduated Fee Scheme,130
2 Hare Court Chambers -Chambers of Orlando Pownall,Przybylska Sarah ,23/04/2019,4,,,East of England Complex Casework Unit,Non-ringfenced Programme DEL,Crown Court Graduated Fee Scheme,783.9
2 Hare Court Chambers -Chambers of Orlando Pownall,Przybylska Sarah ,23/04/2019,5,,,East of England Complex Casework Unit,Non-ringfenced Programme DEL,Crown Court Graduated Fee Scheme,58.13
2 Hare Court Chambers -Chambers of Orlando Pownall,Przybylska Sarah ,23/04/2019,6,,,East of England Complex Casework Unit,Non-ringfenced Programme DEL,Crown Court Graduated Fee Scheme,46.5
2 Hare Court Chambers -Chambers of Orlando Pownall,Przybylska Sarah ,23/04/2019,7,,,East of England Complex Casework Unit,Non-ringfenced Programme DEL,Crown Court Graduated Fee Scheme,501.96
2 Hare Court Chambers -Chambers of Orlando Pownall,Przybylska Sarah ,23/04/2019,8,,,East of England Complex Casework Unit,Non-ringfenced Programme DEL,Crown Court Graduated Fee Scheme,"1,982.50"
2 Hare Court Chambers -Chambers of Orlando Pownall,Przybylska Sarah ,23/04/2019,9,,,East of England Complex Casework Unit,Non-ringfenced Programme DEL,Crown Court Graduated Fee Scheme,"9,000.00"
2 Hare Court Chambers -Chambers of Orlando Pownall,Przybylska Sarah ,23/04/2019,10,,,East of England Complex Casework Unit,Non-ringfenced Programme DEL,Crown Court Graduated Fee Scheme,"23,560.00"
2 Hare Court Chambers -Chambers of Orlando Pownall,Przybylska Sarah ,23/04/2019,11,,,East of England Complex Casework Unit,Non-ringfenced Programme DEL,Crown Court Graduated Fee Scheme,231.15
2 Hare Court Chambers -Chambers of Orlando Pownall,Przybylska Sarah ,23/04/2019,12,STANDARD,GB_VAT,East of England Complex Casework Unit,Non-ringfenced Programme DEL,Crown Court Graduated Fee Scheme,"8,867.83"
Walnut House Chambers of Geoffrey Mercer QC,McCarthy Mary ,02/04/2019,1,,,South West Crown Court: South,Non-ringfenced Programme DEL,Crown Court Graduated Fee Scheme,"10,830.00"
Walnut House Chambers of Geoffrey Mercer QC,McCarthy Mary ,02/04/2019,2,,,South West Crown Court: South,Non-ringfenced Programme DEL,Crown Court Graduated Fee Scheme,395.9
Walnut House Chambers of Geoffrey Mercer QC,McCarthy Mary ,02/04/2019,3,,,South West Crown Court: South,Non-ringfenced Programme DEL,Crown Court Graduated Fee Scheme,"2,166.00"
Walnut House Chambers of Geoffrey Mercer QC,McCarthy Mary ,02/04/2019,4,,,South West Crown Court: South,Non-ringfenced Programme DEL,Crown Court Graduated Fee Scheme,"17,040.00"
Walnut House Chambers of Geoffrey Mercer QC,McCarthy Mary ,02/04/2019,5,,,South West Crown Court: South,Non-ringfenced Programme DEL,Crown Court Graduated Fee Scheme,79
Walnut House Chambers of Geoffrey Mercer QC,McCarthy Mary ,02/04/2019,6,,,South West Crown Court: South,Non-ringfenced Programme DEL,Crown Court Graduated Fee Scheme,79
Walnut House Chambers of Geoffrey Mercer QC,McCarthy Mary ,02/04/2019,7,,,South West Crown Court: South,Non-ringfenced Programme DEL,Crown Court Graduated Fee Scheme,79
Walnut House Chambers of Geoffrey Mercer QC,McCarthy Mary ,02/04/2019,8,,,South West Crown Court: South,Non-ringfenced Programme DEL,Crown Court Graduated Fee Scheme,94.8
Walnut House Chambers of Geoffrey Mercer QC,McCarthy Mary ,02/04/2019,9,,,South West Crown Court: South,Non-ringfenced Programme DEL,Crown Court Graduated Fee Scheme,94.8
Walnut House Chambers of Geoffrey Mercer QC,McCarthy Mary ,02/04/2019,10,,,South West Crown Court: South,Non-ringfenced Programme DEL,Crown Court Graduated Fee Scheme,94.8
Walnut House Chambers of Geoffrey Mercer QC,McCarthy Mary ,02/04/2019,11,,,South West Crown Court: South,Non-ringfenced Programme DEL,Crown Court Graduated Fee Scheme,112.8
Walnut House Chambers of Geoffrey Mercer QC,McCarthy Mary ,02/04/2019,12,,,South West Crown Court: South,Non-ringfenced Programme DEL,Crown Court Graduated Fee Scheme,225.6
Walnut House Chambers of Geoffrey Mercer QC,McCarthy Mary ,02/04/2019,13,,,South West Crown Court: South,Non-ringfenced Programme DEL,Crown Court Graduated Fee Scheme,675
Walnut House Chambers of Geoffrey Mercer QC,McCarthy Mary ,02/04/2019,14,STANDARD,GB_VAT,South West Crown Court: South,Non-ringfenced Programme DEL,Crown Court Graduated Fee Scheme,"6,393.34"
Hay Group Management Limited,7482,08/03/2019,1,,,Leadership and Management Development,Non-ringfenced Admin DEL,External Training,"54,160.06"
Hay Group Management Limited,7482,08/03/2019,2,STANDARD,GB_VAT,Leadership and Management Development,Non-ringfenced Admin DEL,External Training,"10,832.01"
St Pauls Chambers Leeds,Haslam Andrew Peter ,16/04/2019,1,,,SFD North,Non-ringfenced Programme DEL,Crown Court Very High Cost Cases Full Scheme,"25,870.00"
St Pauls Chambers Leeds,Haslam Andrew Peter ,16/04/2019,2,STANDARD,GB_VAT,SFD North,Non-ringfenced Programme DEL,Crown Court Very High Cost Cases Full Scheme,"5,174.00"
St Pauls Chambers Leeds,Macdonald Angus ,17/04/2019,1,,,SFD North,Non-ringfenced Programme DEL,Crown Court Graduated Fee Scheme,"10,830.00"
St Pauls Chambers Leeds,Macdonald Angus ,17/04/2019,2,,,SFD North,Non-ringfenced Programme DEL,Crown Court Graduated Fee Scheme,219.35
St Pauls Chambers Leeds,Macdonald Angus ,17/04/2019,3,,,SFD North,Non-ringfenced Programme DEL,Crown Court Graduated Fee Scheme,"2,166.00"
St Pauls Chambers Leeds,Macdonald Angus ,17/04/2019,4,,,SFD North,Non-ringfenced Programme DEL,Crown Court Graduated Fee Scheme,"11,360.00"
St Pauls Chambers Leeds,Macdonald Angus ,17/04/2019,5,,,SFD North,Non-ringfenced Programme DEL,Crown Court Graduated Fee Scheme,450
St Pauls Chambers Leeds,Macdonald Angus ,17/04/2019,6,,,SFD North,Non-ringfenced Programme DEL,Crown Court Graduated Fee Scheme,450
St Pauls Chambers Leeds,Macdonald Angus ,17/04/2019,7,,,SFD North,Non-ringfenced Programme DEL,Crown Court Graduated Fee Scheme,107.1
St Pauls Chambers Leeds,Macdonald Angus ,17/04/2019,8,,,SFD North,Non-ringfenced Programme DEL,Crown Court Graduated Fee Scheme,"2,171.00"
St Pauls Chambers Leeds,Macdonald Angus ,17/04/2019,9,STANDARD,GB_VAT,SFD North,Non-ringfenced Programme DEL,Crown Court Graduated Fee Scheme,"5,550.69"
Red Lion Chambers (18 RLC),Collery Shane ,29/04/2019,1,,,SFD Midlands and Wales,Non-ringfenced Programme DEL,Crown Court Very High Cost Cases Full Scheme,"19,719.00"
Red Lion Chambers (18 RLC),Collery Shane ,29/04/2019,2,,,SFD Midlands and Wales,Non-ringfenced Programme DEL,Crown Court Very High Cost Cases Full Scheme,"2,150.00"
Red Lion Chambers (18 RLC),Collery Shane ,29/04/2019,3,,,SFD Midlands and Wales,Non-ringfenced Programme DEL,Crown Court Very High Cost Cases Full Scheme,"1,166.80"
Red Lion Chambers (18 RLC),Collery Shane ,29/04/2019,4,,,SFD Midlands and Wales,Non-ringfenced Programme DEL,Crown Court Very High Cost Cases Full Scheme,362.5
Red Lion Chambers (18 RLC),Collery Shane ,29/04/2019,5,STANDARD,GB_VAT,SFD Midlands and Wales,Non-ringfenced Programme DEL,Crown Court Very High Cost Cases Full Scheme,"4,679.66"
Red Lion Chambers (18 RLC),Collery Shane ,09/04/2019,1,,,SFD Midlands and Wales,Non-ringfenced Programme DEL,Higher Court Very High Cost Cases Full Scheme,"39,518.50"
Red Lion Chambers (18 RLC),Collery Shane ,09/04/2019,2,,,SFD Midlands and Wales,Non-ringfenced Programme DEL,Higher Court Very High Cost Cases Full Scheme,200
Red Lion Chambers (18 RLC),Collery Shane ,09/04/2019,3,,,SFD Midlands and Wales,Non-ringfenced Programme DEL,Higher Court Very High Cost Cases Full Scheme,304.9
Red Lion Chambers (18 RLC),Collery Shane ,09/04/2019,4,,,SFD Midlands and Wales,Non-ringfenced Programme DEL,Higher Court Very High Cost Cases Full Scheme,297.92
Red Lion Chambers (18 RLC),Collery Shane ,09/04/2019,5,STANDARD,GB_VAT,SFD Midlands and Wales,Non-ringfenced Programme DEL,Higher Court Very High Cost Cases Full Scheme,"8,064.26"
6 Pump Court The Chambers of Mr Stephen Hockman,Moore Danny ,10/04/2019,1,,,Cymru Wales North Crown Court,Non-ringfenced Programme DEL,Crown Court Very High Cost Cases Full Scheme,"25,335.00"
6 Pump Court The Chambers of Mr Stephen Hockman,Moore Danny ,10/04/2019,2,,,Cymru Wales North Crown Court,Non-ringfenced Programme DEL,Crown Court Very High Cost Cases Full Scheme,318
6 Pump Court The Chambers of Mr Stephen Hockman,Moore Danny ,10/04/2019,3,,,Cymru Wales North Crown Court,Non-ringfenced Programme DEL,Crown Court Very High Cost Cases Full Scheme,43.33
6 Pump Court The Chambers of Mr Stephen Hockman,Moore Danny ,10/04/2019,4,STANDARD,GB_VAT,Cymru Wales North Crown Court,Non-ringfenced Programme DEL,Crown Court Very High Cost Cases Full Scheme,"5,139.27"
Red Lion Chambers (18 RLC),Brown Cameron Kennedy Duncan ,29/04/2019,1,,,Organised Crime London,Non-ringfenced Programme DEL,Crown Court Graduated Fee Scheme,"10,830.00"
Red Lion Chambers (18 RLC),Brown Cameron Kennedy Duncan ,29/04/2019,2,,,Organised Crime London,Non-ringfenced Programme DEL,Crown Court Graduated Fee Scheme,158.75
Red Lion Chambers (18 RLC),Brown Cameron Kennedy Duncan ,29/04/2019,3,,,Organised Crime London,Non-ringfenced Programme DEL,Crown Court Graduated Fee Scheme,152.4
Red Lion Chambers (18 RLC),Brown Cameron Kennedy Duncan ,29/04/2019,4,,,Organised Crime London,Non-ringfenced Programme DEL,Crown Court Graduated Fee Scheme,310.2
Red Lion Chambers (18 RLC),Brown Cameron Kennedy Duncan ,29/04/2019,5,,,Organised Crime London,Non-ringfenced Programme DEL,Crown Court Graduated Fee Scheme,"15,620.00"
Red Lion Chambers (18 RLC),Brown Cameron Kennedy Duncan ,29/04/2019,6,,,Organised Crime London,Non-ringfenced Programme DEL,Crown Court Graduated Fee Scheme,"1,083.00"
Red Lion Chambers (18 RLC),Brown Cameron Kennedy Duncan ,29/04/2019,7,,,Organised Crime London,Non-ringfenced Programme DEL,Crown Court Graduated Fee Scheme,845.3
Red Lion Chambers (18 RLC),Brown Cameron Kennedy Duncan ,29/04/2019,8,,,Organised Crime London,Non-ringfenced Programme DEL,Crown Court Graduated Fee Scheme,94.8
Red Lion Chambers (18 RLC),Brown Cameron Kennedy Duncan ,29/04/2019,9,,,Organised Crime London,Non-ringfenced Programme DEL,Crown Court Graduated Fee Scheme,90.85
Red Lion Chambers (18 RLC),Brown Cameron Kennedy Duncan ,29/04/2019,10,,,Organised Crime London,Non-ringfenced Programme DEL,Crown Court Graduated Fee Scheme,86.9
Red Lion Chambers (18 RLC),Brown Cameron Kennedy Duncan ,29/04/2019,11,,,Organised Crime London,Non-ringfenced Programme DEL,Crown Court Graduated Fee Scheme,"1,156.20"
Red Lion Chambers (18 RLC),Brown Cameron Kennedy Duncan ,29/04/2019,12,STANDARD,GB_VAT,Organised Crime London,Non-ringfenced Programme DEL,Crown Court Graduated Fee Scheme,"6,085.68"
Furnival Chambers,ONeill Sally Jane ,10/04/2019,1,,,London North Complex Casework Unit,Non-ringfenced Programme DEL,Crown Court Graduated Fee Scheme,"6,750.00"
Furnival Chambers,ONeill Sally Jane ,10/04/2019,2,,,London North Complex Casework Unit,Non-ringfenced Programme DEL,Crown Court Graduated Fee Scheme,300
Furnival Chambers,ONeill Sally Jane ,10/04/2019,3,,,London North Complex Casework Unit,Non-ringfenced Programme DEL,Crown Court Graduated Fee Scheme,"14,880.00"
Furnival Chambers,ONeill Sally Jane ,10/04/2019,4,,,London North Complex Casework Unit,Non-ringfenced Programme DEL,Crown Court Graduated Fee Scheme,299.46
Furnival Chambers,ONeill Sally Jane ,10/04/2019,5,,,London North Complex Casework Unit,Non-ringfenced Programme DEL,Crown Court Graduated Fee Scheme,116
Furnival Chambers,ONeill Sally Jane ,10/04/2019,6,,,London North Complex Casework Unit,Non-ringfenced Programme DEL,Crown Court Graduated Fee Scheme,116
Furnival Chambers,ONeill Sally Jane ,10/04/2019,7,,,London North Complex Casework Unit,Non-ringfenced Programme DEL,Crown Court Graduated Fee Scheme,116
Furnival Chambers,ONeill Sally Jane ,10/04/2019,8,,,London North Complex Casework Unit,Non-ringfenced Programme DEL,Crown Court Graduated Fee Scheme,495
Furnival Chambers,ONeill Sally Jane ,10/04/2019,9,,,London North Complex Casework Unit,Non-ringfenced Programme DEL,Crown Court Graduated Fee Scheme,150
Furnival Chambers,ONeill Sally Jane ,10/04/2019,10,STANDARD,GB_VAT,London North Complex Casework Unit,Non-ringfenced Programme DEL,Crown Court Graduated Fee Scheme,"4,644.49"
Furnival Chambers,Frymann A ,29/04/2019,1,,,South East Crown Court,Non-ringfenced Programme DEL,Crown Court Graduated Fee Scheme,"10,830.00"
Furnival Chambers,Frymann A ,29/04/2019,2,,,South East Crown Court,Non-ringfenced Programme DEL,Crown Court Graduated Fee Scheme,169.2
Furnival Chambers,Frymann A ,29/04/2019,3,,,South East Crown Court,Non-ringfenced Programme DEL,Crown Court Graduated Fee Scheme,"20,590.00"
Furnival Chambers,Frymann A ,29/04/2019,4,,,South East Crown Court,Non-ringfenced Programme DEL,Crown Court Graduated Fee Scheme,"2,166.00"
Furnival Chambers,Frymann A ,29/04/2019,5,,,South East Crown Court,Non-ringfenced Programme DEL,Crown Court Graduated Fee Scheme,203.3
Furnival Chambers,Frymann A ,29/04/2019,6,,,South East Crown Court,Non-ringfenced Programme DEL,Crown Court Graduated Fee Scheme,94.8
Furnival Chambers,Frymann A ,29/04/2019,7,,,South East Crown Court,Non-ringfenced Programme DEL,Crown Court Graduated Fee Scheme,94.8
Furnival Chambers,Frymann A ,29/04/2019,8,,,South East Crown Court,Non-ringfenced Programme DEL,Crown Court Graduated Fee Scheme,127.5
Furnival Chambers,Frymann A ,29/04/2019,9,,,South East Crown Court,Non-ringfenced Programme DEL,Crown Court Graduated Fee Scheme,225.6
Furnival Chambers,Frymann A ,29/04/2019,10,,,South East Crown Court,Non-ringfenced Programme DEL,Crown Court Graduated Fee Scheme,"1,155.00"
Furnival Chambers,Frymann A ,29/04/2019,11,STANDARD,GB_VAT,South East Crown Court,Non-ringfenced Programme DEL,Crown Court Graduated Fee Scheme,"7,131.24"
Furnival Chambers,Fapohunda Kemi ,29/04/2019,1,,,South East Crown Court,Non-ringfenced Programme DEL,Crown Court Graduated Fee Scheme,"7,220.00"
Furnival Chambers,Fapohunda Kemi ,29/04/2019,2,,,South East Crown Court,Non-ringfenced Programme DEL,Crown Court Graduated Fee Scheme,120.6
Furnival Chambers,Fapohunda Kemi ,29/04/2019,3,,,South East Crown Court,Non-ringfenced Programme DEL,Crown Court Graduated Fee Scheme,"12,960.00"
Furnival Chambers,Fapohunda Kemi ,29/04/2019,4,,,South East Crown Court,Non-ringfenced Programme DEL,Crown Court Graduated Fee Scheme,"1,444.00"
Furnival Chambers,Fapohunda Kemi ,29/04/2019,5,,,South East Crown Court,Non-ringfenced Programme DEL,Crown Court Graduated Fee Scheme,135.28
Furnival Chambers,Fapohunda Kemi ,29/04/2019,6,,,South East Crown Court,Non-ringfenced Programme DEL,Crown Court Graduated Fee Scheme,160.8
Furnival Chambers,Fapohunda Kemi ,29/04/2019,7,,,South East Crown Court,Non-ringfenced Programme DEL,Crown Court Graduated Fee Scheme,990
Furnival Chambers,Fapohunda Kemi ,29/04/2019,8,STANDARD,GB_VAT,South East Crown Court,Non-ringfenced Programme DEL,Crown Court Graduated Fee Scheme,"4,606.14"
5 King's Bench Walk,Holt Ben ,26/04/2019,1,,,Organised Crime London,Non-ringfenced Programme DEL,Crown Court Graduated Fee Scheme,"6,940.00"
5 King's Bench Walk,Holt Ben ,26/04/2019,2,,,Organised Crime London,Non-ringfenced Programme DEL,Crown Court Graduated Fee Scheme,125
5 King's Bench Walk,Holt Ben ,26/04/2019,3,,,Organised Crime London,Non-ringfenced Programme DEL,Crown Court Graduated Fee Scheme,120
5 King's Bench Walk,Holt Ben ,26/04/2019,4,,,Organised Crime London,Non-ringfenced Programme DEL,Crown Court Graduated Fee Scheme,221.1
5 King's Bench Walk,Holt Ben ,26/04/2019,5,,,Organised Crime London,Non-ringfenced Programme DEL,Crown Court Graduated Fee Scheme,"11,700.00"
5 King's Bench Walk,Holt Ben ,26/04/2019,6,,,Organised Crime London,Non-ringfenced Programme DEL,Crown Court Graduated Fee Scheme,694
5 King's Bench Walk,Holt Ben ,26/04/2019,7,,,Organised Crime London,Non-ringfenced Programme DEL,Crown Court Graduated Fee Scheme,562.48
5 King's Bench Walk,Holt Ben ,26/04/2019,8,,,Organised Crime London,Non-ringfenced Programme DEL,Crown Court Graduated Fee Scheme,55.8
5 King's Bench Walk,Holt Ben ,26/04/2019,9,,,Organised Crime London,Non-ringfenced Programme DEL,Crown Court Graduated Fee Scheme,55.8
5 King's Bench Walk,Holt Ben ,26/04/2019,10,,,Organised Crime London,Non-ringfenced Programme DEL,Crown Court Graduated Fee Scheme,53.48
5 King's Bench Walk,Holt Ben ,26/04/2019,11,,,Organised Crime London,Non-ringfenced Programme DEL,Crown Court Graduated Fee Scheme,51.15
5 King's Bench Walk,Holt Ben ,26/04/2019,12,,,Organised Crime London,Non-ringfenced Programme DEL,Crown Court Graduated Fee Scheme,884.4
5 King's Bench Walk,Holt Ben ,26/04/2019,13,STANDARD,GB_VAT,Organised Crime London,Non-ringfenced Programme DEL,Crown Court Graduated Fee Scheme,"4,292.65"
5 King's Bench Walk,Brown James Richard Charles ,25/04/2019,1,,,London South Complex Casework Unit,Non-ringfenced Programme DEL,Crown Court Graduated Fee Scheme,"10,830.00"
5 King's Bench Walk,Brown James Richard Charles ,25/04/2019,2,,,London South Complex Casework Unit,Non-ringfenced Programme DEL,Crown Court Graduated Fee Scheme,"12,780.00"
5 King's Bench Walk,Brown James Richard Charles ,25/04/2019,3,,,London South Complex Casework Unit,Non-ringfenced Programme DEL,Crown Court Graduated Fee Scheme,535
5 King's Bench Walk,Brown James Richard Charles ,25/04/2019,4,STANDARD,GB_VAT,London South Complex Casework Unit,Non-ringfenced Programme DEL,Crown Court Graduated Fee Scheme,"4,829.00"
Oracle Corporation UK Ltd,Brown James Richard Charles ,06/03/2019,1,,,Legal Reference and ICT Licenses - Project,Non-ringfenced Programme DEL,IT services,"1,437.44"
Oracle Corporation UK Ltd,Brown James Richard Charles ,06/03/2019,2,,,Legal Reference and ICT Licenses - Project,Non-ringfenced Programme DEL,IT services,"1,870.63"
Oracle Corporation UK Ltd,Brown James Richard Charles ,06/03/2019,3,,,Legal Reference and ICT Licenses - Project,Non-ringfenced Programme DEL,IT services,"5,926.99"
Oracle Corporation UK Ltd,Brown James Richard Charles ,06/03/2019,4,,,Legal Reference and ICT Licenses - Project,Non-ringfenced Programme DEL,IT services,"1,437.44"
Oracle Corporation UK Ltd,Brown James Richard Charles ,06/03/2019,5,,,Legal Reference and ICT Licenses - Project,Non-ringfenced Programme DEL,IT services,935.32
Oracle Corporation UK Ltd,Brown James Richard Charles ,06/03/2019,6,,,Legal Reference and ICT Licenses - Project,Non-ringfenced Programme DEL,IT services,"1,437.44"
Oracle Corporation UK Ltd,Brown James Richard Charles ,06/03/2019,7,,,Legal Reference and ICT Licenses - Project,Non-ringfenced Programme DEL,IT services,620.27
Oracle Corporation UK Ltd,Brown James Richard Charles ,06/03/2019,8,,,Legal Reference and ICT Licenses - Project,Non-ringfenced Programme DEL,IT services,"1,321.58"
Oracle Corporation UK Ltd,Brown James Richard Charles ,06/03/2019,9,,,Legal Reference and ICT Licenses - Project,Non-ringfenced Programme DEL,IT services,"1,719.86"
Oracle Corporation UK Ltd,Brown James Richard Charles ,06/03/2019,10,,,Legal Reference and ICT Licenses - Project,Non-ringfenced Programme DEL,IT services,"5,449.24"
Oracle Corporation UK Ltd,Brown James Richard Charles ,06/03/2019,11,,,Legal Reference and ICT Licenses - Project,Non-ringfenced Programme DEL,IT services,"1,321.58"
Oracle Corporation UK Ltd,Brown James Richard Charles ,06/03/2019,12,,,Legal Reference and ICT Licenses - Project,Non-ringfenced Programme DEL,IT services,859.93
Oracle Corporation UK Ltd,Brown James Richard Charles ,06/03/2019,13,,,Legal Reference and ICT Licenses - Project,Non-ringfenced Programme DEL,IT services,"1,321.58"
Oracle Corporation UK Ltd,Brown James Richard Charles ,06/03/2019,14,,,Legal Reference and ICT Licenses - Project,Non-ringfenced Programme DEL,IT services,570.27
Oracle Corporation UK Ltd,Brown James Richard Charles ,06/03/2019,15,STANDARD,GB_VAT,Legal Reference and ICT Licenses - Project,Non-ringfenced Programme DEL,IT services,"5,245.91"
Oracle Corporation UK Ltd,Brown James Richard Charles ,09/04/2019,1,,,Legal Reference and ICT Licenses - Project,Non-ringfenced Programme DEL,IT services,"4,299.27"
Oracle Corporation UK Ltd,Brown James Richard Charles ,09/04/2019,2,,,Legal Reference and ICT Licenses - Project,Non-ringfenced Programme DEL,IT services,"1,040.98"
Oracle Corporation UK Ltd,Brown James Richard Charles ,09/04/2019,3,,,Legal Reference and ICT Licenses - Project,Non-ringfenced Programme DEL,IT services,"2,061.58"
Oracle Corporation UK Ltd,Brown James Richard Charles ,09/04/2019,4,,,Legal Reference and ICT Licenses - Project,Non-ringfenced Programme DEL,IT services,"9,508.89"
Oracle Corporation UK Ltd,Brown James Richard Charles ,09/04/2019,5,,,Legal Reference and ICT Licenses - Project,Non-ringfenced Programme DEL,IT services,"76,137.24"
Oracle Corporation UK Ltd,Brown James Richard Charles ,09/04/2019,6,,,Legal Reference and ICT Licenses - Project,Non-ringfenced Programme DEL,IT services,142.03
Oracle Corporation UK Ltd,Brown James Richard Charles ,09/04/2019,7,,,Legal Reference and ICT Licenses - Project,Non-ringfenced Programme DEL,IT services,"4,907.92"
Oracle Corporation UK Ltd,Brown James Richard Charles ,09/04/2019,8,,,Legal Reference and ICT Licenses - Project,Non-ringfenced Programme DEL,IT services,"18,433.79"
Oracle Corporation UK Ltd,Brown James Richard Charles ,09/04/2019,9,,,Legal Reference and ICT Licenses - Project,Non-ringfenced Programme DEL,IT services,"36,864.43"
Oracle Corporation UK Ltd,Brown James Richard Charles ,09/04/2019,10,,,Legal Reference and ICT Licenses - Project,Non-ringfenced Programme DEL,IT services,142.03
Oracle Corporation UK Ltd,Brown James Richard Charles ,09/04/2019,11,,,Legal Reference and ICT Licenses - Project,Non-ringfenced Programme DEL,IT services,"4,907.92"
Oracle Corporation UK Ltd,Brown James Richard Charles ,09/04/2019,12,,,Legal Reference and ICT Licenses - Project,Non-ringfenced Programme DEL,IT services,"8,680.48"
Oracle Corporation UK Ltd,Brown James Richard Charles ,09/04/2019,13,,,Legal Reference and ICT Licenses - Project,Non-ringfenced Programme DEL,IT services,171.18
Oracle Corporation UK Ltd,Brown James Richard Charles ,09/04/2019,14,,,Legal Reference and ICT Licenses - Project,Non-ringfenced Programme DEL,IT services,431.02
Oracle Corporation UK Ltd,Brown James Richard Charles ,09/04/2019,15,,,Legal Reference and ICT Licenses - Project,Non-ringfenced Programme DEL,IT services,171.18
Oracle Corporation UK Ltd,Brown James Richard Charles ,09/04/2019,16,,,Legal Reference and ICT Licenses - Project,Non-ringfenced Programme DEL,IT services,431.02
Oracle Corporation UK Ltd,Brown James Richard Charles ,09/04/2019,17,,,Legal Reference and ICT Licenses - Project,Non-ringfenced Programme DEL,IT services,"4,706.45"
Oracle Corporation UK Ltd,Brown James Richard Charles ,09/04/2019,18,,,Legal Reference and ICT Licenses - Project,Non-ringfenced Programme DEL,IT services,"4,241.69"
Oracle Corporation UK Ltd,Brown James Richard Charles ,09/04/2019,19,,,Legal Reference and ICT Licenses - Project,Non-ringfenced Programme DEL,IT services,105.3
Oracle Corporation UK Ltd,Brown James Richard Charles ,09/04/2019,20,,,Legal Reference and ICT Licenses - Project,Non-ringfenced Programme DEL,IT services,352.98
Oracle Corporation UK Ltd,Brown James Richard Charles ,09/04/2019,21,,,Legal Reference and ICT Licenses - Project,Non-ringfenced Programme DEL,IT services,105.3
Oracle Corporation UK Ltd,Brown James Richard Charles ,09/04/2019,22,,,Legal Reference and ICT Licenses - Project,Non-ringfenced Programme DEL,IT services,352.98
Oracle Corporation UK Ltd,Brown James Richard Charles ,09/04/2019,23,,,Legal Reference and ICT Licenses - Project,Non-ringfenced Programme DEL,IT services,"4,380.18"
Oracle Corporation UK Ltd,Brown James Richard Charles ,09/04/2019,24,,,Legal Reference and ICT Licenses - Project,Non-ringfenced Programme DEL,IT services,461.07
Oracle Corporation UK Ltd,Brown James Richard Charles ,09/04/2019,25,,,Legal Reference and ICT Licenses - Project,Non-ringfenced Programme DEL,IT services,"1,060.46"
Oracle Corporation UK Ltd,Brown James Richard Charles ,09/04/2019,26,,,Legal Reference and ICT Licenses - Project,Non-ringfenced Programme DEL,IT services,"2,120.92"
Oracle Corporation UK Ltd,Brown James Richard Charles ,09/04/2019,27,,,Legal Reference and ICT Licenses - Project,Non-ringfenced Programme DEL,IT services,461.07
Oracle Corporation UK Ltd,Brown James Richard Charles ,09/04/2019,28,,,Legal Reference and ICT Licenses - Project,Non-ringfenced Programme DEL,IT services,"4,372.16"
Oracle Corporation UK Ltd,Brown James Richard Charles ,09/04/2019,29,,,Legal Reference and ICT Licenses - Project,Non-ringfenced Programme DEL,IT services,460.23
Oracle Corporation UK Ltd,Brown James Richard Charles ,09/04/2019,30,,,Legal Reference and ICT Licenses - Project,Non-ringfenced Programme DEL,IT services,"1,058.53"
Oracle Corporation UK Ltd,Brown James Richard Charles ,09/04/2019,31,,,Legal Reference and ICT Licenses - Project,Non-ringfenced Programme DEL,IT services,"2,117.04"
Oracle Corporation UK Ltd,Brown James Richard Charles ,09/04/2019,32,,,Legal Reference and ICT Licenses - Project,Non-ringfenced Programme DEL,IT services,460.23
Oracle Corporation UK Ltd,Brown James Richard Charles ,09/04/2019,33,,,Legal Reference and ICT Licenses - Project,Non-ringfenced Programme DEL,IT services,"4,299.27"
Oracle Corporation UK Ltd,Brown James Richard Charles ,09/04/2019,34,,,Legal Reference and ICT Licenses - Project,Non-ringfenced Programme DEL,IT services,"1,040.98"
Oracle Corporation UK Ltd,Brown James Richard Charles ,09/04/2019,35,,,Legal Reference and ICT Licenses - Project,Non-ringfenced Programme DEL,IT services,"2,061.58"
Oracle Corporation UK Ltd,Brown James Richard Charles ,09/04/2019,36,,,Legal Reference and ICT Licenses - Project,Non-ringfenced Programme DEL,IT services,"9,508.89"
Oracle Corporation UK Ltd,Brown James Richard Charles ,09/04/2019,37,,,Legal Reference and ICT Licenses - Project,Non-ringfenced Programme DEL,IT services,"76,137.24"
Oracle Corporation UK Ltd,Brown James Richard Charles ,09/04/2019,38,,,Legal Reference and ICT Licenses - Project,Non-ringfenced Programme DEL,IT services,142.03
Oracle Corporation UK Ltd,Brown James Richard Charles ,09/04/2019,39,,,Legal Reference and ICT Licenses - Project,Non-ringfenced Programme DEL,IT services,"4,907.92"
Oracle Corporation UK Ltd,Brown James Richard Charles ,09/04/2019,40,,,Legal Reference and ICT Licenses - Project,Non-ringfenced Programme DEL,IT services,"18,433.79"
Oracle Corporation UK Ltd,Brown James Richard Charles ,09/04/2019,41,,,Legal Reference and ICT Licenses - Project,Non-ringfenced Programme DEL,IT services,"36,864.43"
Oracle Corporation UK Ltd,Brown James Richard Charles ,09/04/2019,42,,,Legal Reference and ICT Licenses - Project,Non-ringfenced Programme DEL,IT services,142.03
Oracle Corporation UK Ltd,Brown James Richard Charles ,09/04/2019,43,,,Legal Reference and ICT Licenses - Project,Non-ringfenced Programme DEL,IT services,"4,907.92"
Oracle Corporation UK Ltd,Brown James Richard Charles ,09/04/2019,44,,,Legal Reference and ICT Licenses - Project,Non-ringfenced Programme DEL,IT services,"8,680.48"
Oracle Corporation UK Ltd,Brown James Richard Charles ,09/04/2019,45,,,Legal Reference and ICT Licenses - Project,Non-ringfenced Programme DEL,IT services,171.18
Oracle Corporation UK Ltd,Brown James Richard Charles ,09/04/2019,46,,,Legal Reference and ICT Licenses - Project,Non-ringfenced Programme DEL,IT services,431.02
Oracle Corporation UK Ltd,Brown James Richard Charles ,09/04/2019,47,,,Legal Reference and ICT Licenses - Project,Non-ringfenced Programme DEL,IT services,171.18
Oracle Corporation UK Ltd,Brown James Richard Charles ,09/04/2019,48,,,Legal Reference and ICT Licenses - Project,Non-ringfenced Programme DEL,IT services,431.02
Oracle Corporation UK Ltd,Brown James Richard Charles ,09/04/2019,49,,,Legal Reference and ICT Licenses - Project,Non-ringfenced Programme DEL,IT services,"4,241.69"
Oracle Corporation UK Ltd,Brown James Richard Charles ,09/04/2019,50,,,Legal Reference and ICT Licenses - Project,Non-ringfenced Programme DEL,IT services,"4,706.45"
Oracle Corporation UK Ltd,Brown James Richard Charles ,09/04/2019,51,,,Legal Reference and ICT Licenses - Project,Non-ringfenced Programme DEL,IT services,352.98
Oracle Corporation UK Ltd,Brown James Richard Charles ,09/04/2019,52,,,Legal Reference and ICT Licenses - Project,Non-ringfenced Programme DEL,IT services,105.3
Oracle Corporation UK Ltd,Brown James Richard Charles ,09/04/2019,53,,,Legal Reference and ICT Licenses - Project,Non-ringfenced Programme DEL,IT services,352.98
Oracle Corporation UK Ltd,Brown James Richard Charles ,09/04/2019,54,,,Legal Reference and ICT Licenses - Project,Non-ringfenced Programme DEL,IT services,105.3
Oracle Corporation UK Ltd,Brown James Richard Charles ,09/04/2019,55,,,Legal Reference and ICT Licenses - Project,Non-ringfenced Programme DEL,IT services,"4,380.18"
Oracle Corporation UK Ltd,Brown James Richard Charles ,09/04/2019,56,,,Legal Reference and ICT Licenses - Project,Non-ringfenced Programme DEL,IT services,461.07
Oracle Corporation UK Ltd,Brown James Richard Charles ,09/04/2019,57,,,Legal Reference and ICT Licenses - Project,Non-ringfenced Programme DEL,IT services,"1,060.46"
Oracle Corporation UK Ltd,Brown James Richard Charles ,09/04/2019,58,,,Legal Reference and ICT Licenses - Project,Non-ringfenced Programme DEL,IT services,"2,120.92"
Oracle Corporation UK Ltd,Brown James Richard Charles ,09/04/2019,59,,,Legal Reference and ICT Licenses - Project,Non-ringfenced Programme DEL,IT services,461.07
Oracle Corporation UK Ltd,Brown James Richard Charles ,09/04/2019,60,,,Legal Reference and ICT Licenses - Project,Non-ringfenced Programme DEL,IT services,"4,372.16"
Oracle Corporation UK Ltd,Brown James Richard Charles ,09/04/2019,61,,,Legal Reference and ICT Licenses - Project,Non-ringfenced Programme DEL,IT services,460.23
Oracle Corporation UK Ltd,Brown James Richard Charles ,09/04/2019,62,,,Legal Reference and ICT Licenses - Project,Non-ringfenced Programme DEL,IT services,"1,058.53"
Oracle Corporation UK Ltd,Brown James Richard Charles ,09/04/2019,63,,,Legal Reference and ICT Licenses - Project,Non-ringfenced Programme DEL,IT services,"2,117.04"
Oracle Corporation UK Ltd,Brown James Richard Charles ,09/04/2019,64,,,Legal Reference and ICT Licenses - Project,Non-ringfenced Programme DEL,IT services,460.23
Oracle Corporation UK Ltd,Brown James Richard Charles ,09/04/2019,65,STANDARD,GB_VAT,Legal Reference and ICT Licenses - Project,Non-ringfenced Programme DEL,IT services,"78,059.01"
Seven Bedford Row,Nashashibi A ,12/04/2019,1,,,West Midlands Complex Casework Unit,Non-ringfenced Programme DEL,Crown Court Graduated Fee Scheme,"10,830.00"
Seven Bedford Row,Nashashibi A ,12/04/2019,2,,,West Midlands Complex Casework Unit,Non-ringfenced Programme DEL,Crown Court Graduated Fee Scheme,225.6
Seven Bedford Row,Nashashibi A ,12/04/2019,3,,,West Midlands Complex Casework Unit,Non-ringfenced Programme DEL,Crown Court Graduated Fee Scheme,"9,940.00"
Seven Bedford Row,Nashashibi A ,12/04/2019,4,,,West Midlands Complex Casework Unit,Non-ringfenced Programme DEL,Crown Court Graduated Fee Scheme,"1,624.50"
Seven Bedford Row,Nashashibi A ,12/04/2019,5,,,West Midlands Complex Casework Unit,Non-ringfenced Programme DEL,Crown Court Graduated Fee Scheme,181.9
Seven Bedford Row,Nashashibi A ,12/04/2019,6,,,West Midlands Complex Casework Unit,Non-ringfenced Programme DEL,Crown Court Graduated Fee Scheme,90.85
Seven Bedford Row,Nashashibi A ,12/04/2019,7,,,West Midlands Complex Casework Unit,Non-ringfenced Programme DEL,Crown Court Graduated Fee Scheme,90.85
Seven Bedford Row,Nashashibi A ,12/04/2019,8,,,West Midlands Complex Casework Unit,Non-ringfenced Programme DEL,Crown Court Graduated Fee Scheme,"2,406.50"
Seven Bedford Row,Nashashibi A ,12/04/2019,9,STANDARD,GB_VAT,West Midlands Complex Casework Unit,Non-ringfenced Programme DEL,Crown Court Graduated Fee Scheme,"5,078.04"
23 Essex Street Chambers,Price John ,15/04/2019,1,,,Cymru Wales South East Crown Court,Non-ringfenced Programme DEL,Crown Court Graduated Fee Scheme,"15,870.00"
23 Essex Street Chambers,Price John ,15/04/2019,2,,,Cymru Wales South East Crown Court,Non-ringfenced Programme DEL,Crown Court Graduated Fee Scheme,300
23 Essex Street Chambers,Price John ,15/04/2019,3,,,Cymru Wales South East Crown Court,Non-ringfenced Programme DEL,Crown Court Graduated Fee Scheme,"18,600.00"
23 Essex Street Chambers,Price John ,15/04/2019,4,,,Cymru Wales South East Crown Court,Non-ringfenced Programme DEL,Crown Court Graduated Fee Scheme,"1,587.00"
23 Essex Street Chambers,Price John ,15/04/2019,5,,,Cymru Wales South East Crown Court,Non-ringfenced Programme DEL,Crown Court Graduated Fee Scheme,691.61
23 Essex Street Chambers,Price John ,15/04/2019,6,,,Cymru Wales South East Crown Court,Non-ringfenced Programme DEL,Crown Court Graduated Fee Scheme,544.5
23 Essex Street Chambers,Price John ,15/04/2019,7,,,Cymru Wales South East Crown Court,Non-ringfenced Programme DEL,Crown Court Graduated Fee Scheme,544.5
23 Essex Street Chambers,Price John ,15/04/2019,8,STANDARD,GB_VAT,Cymru Wales South East Crown Court,Non-ringfenced Programme DEL,Crown Court Graduated Fee Scheme,"7,627.52"
Foundry Chambers (9-12 Bell Yard),Healy Alexandra ,11/04/2019,1,,,Special Crime Unit London,Non-ringfenced Programme DEL,Crown Court Graduated Fee Scheme,"14,820.00"
Foundry Chambers (9-12 Bell Yard),Healy Alexandra ,11/04/2019,2,,,Special Crime Unit London,Non-ringfenced Programme DEL,Crown Court Graduated Fee Scheme,525
Foundry Chambers (9-12 Bell Yard),Healy Alexandra ,11/04/2019,3,,,Special Crime Unit London,Non-ringfenced Programme DEL,Crown Court Graduated Fee Scheme,"35,970.00"
Foundry Chambers (9-12 Bell Yard),Healy Alexandra ,11/04/2019,4,,,Special Crime Unit London,Non-ringfenced Programme DEL,Crown Court Graduated Fee Scheme,741
Foundry Chambers (9-12 Bell Yard),Healy Alexandra ,11/04/2019,5,,,Special Crime Unit London,Non-ringfenced Programme DEL,Crown Court Graduated Fee Scheme,541.88
Foundry Chambers (9-12 Bell Yard),Healy Alexandra ,11/04/2019,6,,,Special Crime Unit London,Non-ringfenced Programme DEL,Crown Court Graduated Fee Scheme,121.8
Foundry Chambers (9-12 Bell Yard),Healy Alexandra ,11/04/2019,7,,,Special Crime Unit London,Non-ringfenced Programme DEL,Crown Court Graduated Fee Scheme,519.75
Foundry Chambers (9-12 Bell Yard),Healy Alexandra ,11/04/2019,8,,,Special Crime Unit London,Non-ringfenced Programme DEL,Crown Court Graduated Fee Scheme,519.75
Foundry Chambers (9-12 Bell Yard),Healy Alexandra ,11/04/2019,9,STANDARD,GB_VAT,Special Crime Unit London,Non-ringfenced Programme DEL,Crown Court Graduated Fee Scheme,"10,751.84"
36 Bedford Row,Herbert David ,19/04/2019,1,,,East Midlands Crown Court Section,Non-ringfenced Programme DEL,Crown Court Graduated Fee Scheme,"6,750.00"
36 Bedford Row,Herbert David ,19/04/2019,2,,,East Midlands Crown Court Section,Non-ringfenced Programme DEL,Crown Court Graduated Fee Scheme,116
36 Bedford Row,Herbert David ,19/04/2019,3,,,East Midlands Crown Court Section,Non-ringfenced Programme DEL,Crown Court Graduated Fee Scheme,225.6
36 Bedford Row,Herbert David ,19/04/2019,4,,,East Midlands Crown Court Section,Non-ringfenced Programme DEL,Crown Court Graduated Fee Scheme,188
36 Bedford Row,Herbert David ,19/04/2019,5,,,East Midlands Crown Court Section,Non-ringfenced Programme DEL,Crown Court Graduated Fee Scheme,"1,031.25"
36 Bedford Row,Herbert David ,19/04/2019,6,,,East Midlands Crown Court Section,Non-ringfenced Programme DEL,Crown Court Graduated Fee Scheme,"47,120.00"
36 Bedford Row,Herbert David ,19/04/2019,7,,,East Midlands Crown Court Section,Non-ringfenced Programme DEL,Crown Court Graduated Fee Scheme,"1,420.00"
36 Bedford Row,Herbert David ,19/04/2019,8,,,East Midlands Crown Court Section,Non-ringfenced Programme DEL,Crown Court Graduated Fee Scheme,"1,687.50"
36 Bedford Row,Herbert David ,19/04/2019,9,,,East Midlands Crown Court Section,Non-ringfenced Programme DEL,Crown Court Graduated Fee Scheme,905.51
36 Bedford Row,Herbert David ,19/04/2019,10,,,East Midlands Crown Court Section,Non-ringfenced Programme DEL,Crown Court Graduated Fee Scheme,127.6
36 Bedford Row,Herbert David ,19/04/2019,11,,,East Midlands Crown Court Section,Non-ringfenced Programme DEL,Crown Court Graduated Fee Scheme,"2,343.75"
36 Bedford Row,Herbert David ,19/04/2019,12,,,East Midlands Crown Court Section,Non-ringfenced Programme DEL,Crown Court Graduated Fee Scheme,38.75
36 Bedford Row,Herbert David ,19/04/2019,13,STANDARD,GB_VAT,East Midlands Crown Court Section,Non-ringfenced Programme DEL,Crown Court Graduated Fee Scheme,"12,390.79"
36 Bedford Row,Cox Jonathan ,19/04/2019,1,,,East Midlands Crown Court Section,Non-ringfenced Programme DEL,Crown Court Graduated Fee Scheme,"3,370.00"
36 Bedford Row,Cox Jonathan ,19/04/2019,2,,,East Midlands Crown Court Section,Non-ringfenced Programme DEL,Crown Court Graduated Fee Scheme,532.65
36 Bedford Row,Cox Jonathan ,19/04/2019,3,,,East Midlands Crown Court Section,Non-ringfenced Programme DEL,Crown Court Graduated Fee Scheme,"23,560.00"
36 Bedford Row,Cox Jonathan ,19/04/2019,4,,,East Midlands Crown Court Section,Non-ringfenced Programme DEL,Crown Court Graduated Fee Scheme,842.5
36 Bedford Row,Cox Jonathan ,19/04/2019,5,,,East Midlands Crown Court Section,Non-ringfenced Programme DEL,Crown Court Graduated Fee Scheme,337
36 Bedford Row,Cox Jonathan ,19/04/2019,6,,,East Midlands Crown Court Section,Non-ringfenced Programme DEL,Crown Court Graduated Fee Scheme,452.12
36 Bedford Row,Cox Jonathan ,19/04/2019,7,,,East Midlands Crown Court Section,Non-ringfenced Programme DEL,Crown Court Graduated Fee Scheme,58.13
36 Bedford Row,Cox Jonathan ,19/04/2019,8,,,East Midlands Crown Court Section,Non-ringfenced Programme DEL,Crown Court Graduated Fee Scheme,"1,809.00"
36 Bedford Row,Cox Jonathan ,19/04/2019,9,,,East Midlands Crown Court Section,Non-ringfenced Programme DEL,Crown Court Graduated Fee Scheme,63
36 Bedford Row,Cox Jonathan ,19/04/2019,10,,,East Midlands Crown Court Section,Non-ringfenced Programme DEL,Crown Court Graduated Fee Scheme,44.5
36 Bedford Row,Cox Jonathan ,19/04/2019,11,STANDARD,GB_VAT,East Midlands Crown Court Section,Non-ringfenced Programme DEL,Crown Court Graduated Fee Scheme,"6,213.78"
Lumesse Limited Luton,44260,29/03/2019,1,,,Prosecution College,Non-ringfenced Programme DEL,Internal Training,"43,522.02"
Lumesse Limited Luton,44260,29/03/2019,2,STANDARD,GB_VAT,Prosecution College,Non-ringfenced Programme DEL,Internal Training,"8,704.41"
Lumesse Limited Luton,44260,29/03/2019,1,,,Prosecution College,Non-ringfenced Programme DEL,Internal Training,"43,522.02"
Lumesse Limited Luton,44260,29/03/2019,6,,,Prosecution College,Non-ringfenced Programme DEL,Internal Training,"2,086.32"
Lumesse Limited Luton,44260,29/03/2019,7,STANDARD,GB_VAT,Prosecution College,Non-ringfenced Programme DEL,Internal Training,"9,121.66"
Pump Court Chambers - 3 Pump Court,Ruffell Mark ,15/04/2019,1,,,Wessex Crown Court Unit,Non-ringfenced Programme DEL,Crown Court Graduated Fee Scheme,"10,830.00"
Pump Court Chambers - 3 Pump Court,Ruffell Mark ,15/04/2019,2,,,Wessex Crown Court Unit,Non-ringfenced Programme DEL,Crown Court Graduated Fee Scheme,183.3
Pump Court Chambers - 3 Pump Court,Ruffell Mark ,15/04/2019,3,,,Wessex Crown Court Unit,Non-ringfenced Programme DEL,Crown Court Graduated Fee Scheme,"17,040.00"
Pump Court Chambers - 3 Pump Court,Ruffell Mark ,15/04/2019,4,,,Wessex Crown Court Unit,Non-ringfenced Programme DEL,Crown Court Graduated Fee Scheme,541.5
Pump Court Chambers - 3 Pump Court,Ruffell Mark ,15/04/2019,5,,,Wessex Crown Court Unit,Non-ringfenced Programme DEL,Crown Court Graduated Fee Scheme,256.8
Pump Court Chambers - 3 Pump Court,Ruffell Mark ,15/04/2019,6,,,Wessex Crown Court Unit,Non-ringfenced Programme DEL,Crown Court Graduated Fee Scheme,82.95
Pump Court Chambers - 3 Pump Court,Ruffell Mark ,15/04/2019,7,STANDARD,GB_VAT,Wessex Crown Court Unit,Non-ringfenced Programme DEL,Crown Court Graduated Fee Scheme,"5,786.91"
Accenture (UK) Ltd London,897210,19/03/2019,1,,,ERP Project: Programme,Non-ringfenced Programme DEL,IT services,"198,780.00"
Accenture (UK) Ltd London,897210,19/03/2019,2,STANDARD,GB_VAT,ERP Project: Programme,Non-ringfenced Programme DEL,IT services,"39,756.00"
Accenture (UK) Ltd London,897210,11/04/2019,1,,,ERP Project: Programme,Non-ringfenced Programme DEL,IT services,"553,412.00"
Accenture (UK) Ltd London,897210,11/04/2019,2,STANDARD,GB_VAT,ERP Project: Programme,Non-ringfenced Programme DEL,IT services,"110,682.40"
Accenture (UK) Ltd London,897210,26/04/2019,1,,,ERP Project: Programme,Non-ringfenced Admin DEL,IT services,"177,840.00"
Accenture (UK) Ltd London,897210,26/04/2019,2,STANDARD,GB_VAT,ERP Project: Programme,Non-ringfenced Admin DEL,IT services,"35,568.00"
AVR Transcription Ltd Bolton,20526,01/04/2019,1,,,Other Corporate Programme Payments,Non-ringfenced Programme DEL,Transcriptions and Translation,"47,741.04"
AVR Transcription Ltd Bolton,20526,01/04/2019,2,STANDARD,GB_VAT,Other Corporate Programme Payments,Non-ringfenced Programme DEL,Transcriptions and Translation,"9,548.21"
New Park Court Chambers Leeds,Donkin Matthew ,03/04/2019,1,,,North East Complex Casework Unit,Non-ringfenced Programme DEL,Crown Court Graduated Fee Scheme,"10,830.00"
New Park Court Chambers Leeds,Donkin Matthew ,03/04/2019,2,,,North East Complex Casework Unit,Non-ringfenced Programme DEL,Crown Court Graduated Fee Scheme,127
New Park Court Chambers Leeds,Donkin Matthew ,03/04/2019,3,,,North East Complex Casework Unit,Non-ringfenced Programme DEL,Crown Court Graduated Fee Scheme,676.8
New Park Court Chambers Leeds,Donkin Matthew ,03/04/2019,4,,,North East Complex Casework Unit,Non-ringfenced Programme DEL,Crown Court Graduated Fee Scheme,"12,070.00"
New Park Court Chambers Leeds,Donkin Matthew ,03/04/2019,5,,,North East Complex Casework Unit,Non-ringfenced Programme DEL,Crown Court Graduated Fee Scheme,"2,707.50"
New Park Court Chambers Leeds,Donkin Matthew ,03/04/2019,6,,,North East Complex Casework Unit,Non-ringfenced Programme DEL,Crown Court Graduated Fee Scheme,674.1
New Park Court Chambers Leeds,Donkin Matthew ,03/04/2019,7,,,North East Complex Casework Unit,Non-ringfenced Programme DEL,Crown Court Graduated Fee Scheme,79
New Park Court Chambers Leeds,Donkin Matthew ,03/04/2019,8,,,North East Complex Casework Unit,Non-ringfenced Programme DEL,Crown Court Graduated Fee Scheme,79
New Park Court Chambers Leeds,Donkin Matthew ,03/04/2019,9,STANDARD,GB_VAT,North East Complex Casework Unit,Non-ringfenced Programme DEL,Crown Court Graduated Fee Scheme,"5,448.68"
Cabinet Office RM Shared Services,51727,01/04/2019,1,,,Director of Finance,Non-ringfenced Admin DEL,Professional subscriptions and memberships,"107,658.31"
Cabinet Office RM Shared Services,51727,08/04/2019,1,,,Resourcing,Non-ringfenced Admin DEL,Recruitment general costs,"27,145.80"
Cabinet Office RM Shared Services,51727,08/04/2019,2,,,Resourcing,Non-ringfenced Admin DEL,Recruitment general costs,"5,940.00"
Cabinet Office RM Shared Services,51727,08/04/2019,3,STANDARD,GB_VAT,Resourcing,Non-ringfenced Admin DEL,Recruitment general costs,"6,617.16"
HM Treasury,28766,31/03/2019,1,,,Other Corporate Admin Payments,Non-ringfenced Admin DEL,Professional subscriptions and memberships,"38,125.00"
HM Treasury,28766,31/03/2019,2,STANDARD,GB_VAT,Other Corporate Admin Payments,Non-ringfenced Admin DEL,Professional subscriptions and memberships,"7,625.00"
Government Legal Department,709027,08/02/2019,1,,,Other Corporate Programme Payments,Non-ringfenced Programme DEL,Legal Consultancy Advice,"33,367.67"
Government Legal Department,709027,08/02/2019,2,STANDARD,GB_VAT,Other Corporate Programme Payments,Non-ringfenced Programme DEL,Legal Consultancy Advice,"6,673.53"
Crimeline Training Ltd Wigan,50783,03/04/2019,1,,,Other Corporate Programme Payments,Non-ringfenced Programme DEL,Professional subscriptions and memberships,"27,340.00"
Crimeline Training Ltd Wigan,50783,03/04/2019,2,STANDARD,GB_VAT,Other Corporate Programme Payments,Non-ringfenced Programme DEL,Professional subscriptions and memberships,"5,468.00"
No 5 Fountain Court Chambers,Brook Matthew John ,25/04/2019,1,,,Counter Terrorism Unit: Internal Funding,Non-ringfenced Programme DEL,Crown Court Graduated Fee Scheme,"5,415.00"
No 5 Fountain Court Chambers,Brook Matthew John ,25/04/2019,2,,,Counter Terrorism Unit: Internal Funding,Non-ringfenced Programme DEL,Crown Court Graduated Fee Scheme,100.5
No 5 Fountain Court Chambers,Brook Matthew John ,25/04/2019,3,,,Counter Terrorism Unit: Internal Funding,Non-ringfenced Programme DEL,Crown Court Graduated Fee Scheme,"12,000.00"
No 5 Fountain Court Chambers,Brook Matthew John ,25/04/2019,4,,,Counter Terrorism Unit: Internal Funding,Non-ringfenced Programme DEL,Crown Court Graduated Fee Scheme,541.5
No 5 Fountain Court Chambers,Brook Matthew John ,25/04/2019,5,,,Counter Terrorism Unit: Internal Funding,Non-ringfenced Programme DEL,Crown Court Graduated Fee Scheme,253.65
No 5 Fountain Court Chambers,Brook Matthew John ,25/04/2019,6,,,Counter Terrorism Unit: Internal Funding,Non-ringfenced Programme DEL,Crown Court Graduated Fee Scheme,"2,680.49"
No 5 Fountain Court Chambers,Brook Matthew John ,25/04/2019,7,STANDARD,GB_VAT,Counter Terrorism Unit: Internal Funding,Non-ringfenced Programme DEL,Crown Court Graduated Fee Scheme,"4,198.23"
No 5 Fountain Court Chambers,Hankin Jonas ,11/04/2019,1,,,West Midlands Complex Casework Unit,Non-ringfenced Programme DEL,Crown Court Graduated Fee Scheme,"6,750.00"
No 5 Fountain Court Chambers,Hankin Jonas ,11/04/2019,2,,,West Midlands Complex Casework Unit,Non-ringfenced Programme DEL,Crown Court Graduated Fee Scheme,188
No 5 Fountain Court Chambers,Hankin Jonas ,11/04/2019,3,,,West Midlands Complex Casework Unit,Non-ringfenced Programme DEL,Crown Court Graduated Fee Scheme,656.25
No 5 Fountain Court Chambers,Hankin Jonas ,11/04/2019,4,,,West Midlands Complex Casework Unit,Non-ringfenced Programme DEL,Crown Court Graduated Fee Scheme,"21,080.00"
No 5 Fountain Court Chambers,Hankin Jonas ,11/04/2019,5,,,West Midlands Complex Casework Unit,Non-ringfenced Programme DEL,Crown Court Graduated Fee Scheme,275
No 5 Fountain Court Chambers,Hankin Jonas ,11/04/2019,6,,,West Midlands Complex Casework Unit,Non-ringfenced Programme DEL,Crown Court Graduated Fee Scheme,470.58
No 5 Fountain Court Chambers,Hankin Jonas ,11/04/2019,7,,,West Midlands Complex Casework Unit,Non-ringfenced Programme DEL,Crown Court Graduated Fee Scheme,116
No 5 Fountain Court Chambers,Hankin Jonas ,11/04/2019,8,,,West Midlands Complex Casework Unit,Non-ringfenced Programme DEL,Crown Court Graduated Fee Scheme,150
No 5 Fountain Court Chambers,Hankin Jonas ,11/04/2019,9,STANDARD,GB_VAT,West Midlands Complex Casework Unit,Non-ringfenced Programme DEL,Crown Court Graduated Fee Scheme,"5,937.17"
CenturyLink,39100,03/04/2019,1,,,PSN Services Contract,Non-ringfenced Programme DEL,IT services,"172,830.98"
CenturyLink,39100,03/04/2019,2,STANDARD,GB_VAT,PSN Services Contract,Non-ringfenced Programme DEL,IT services,"34,566.20"
CenturyLink,39100,01/04/2019,1,,,Analysis and Delivery: non CMS,Non-ringfenced Programme DEL,IT services,"21,791.25"
CenturyLink,39100,01/04/2019,2,STANDARD,GB_VAT,Analysis and Delivery: non CMS,Non-ringfenced Programme DEL,IT services,"4,358.25"
CenturyLink,39100,01/04/2019,1,,,PSN Connectivity Contract - Project,Non-ringfenced Programme DEL,IT services,"145,311.49"
CenturyLink,39100,01/04/2019,2,STANDARD,GB_VAT,PSN Connectivity Contract - Project,Non-ringfenced Programme DEL,IT services,"29,062.29"
WIPRO Holdings London,897151,25/03/2019,1,,,DTS ICT Capital Expenditure,Capital DEL,PPE asset purchase clearing Information technology,"615,094.56"
WIPRO Holdings London,897151,25/03/2019,2,STANDARD,GB_VAT,DTS ICT Capital Expenditure,Capital DEL,PPE asset purchase clearing Information technology,"123,018.91"
WIPRO Holdings London,897151,29/03/2019,1,,,End User Computing Contract - Project,Non-ringfenced Programme DEL,IT services,"28,499.63"
WIPRO Holdings London,897151,29/03/2019,2,,,End User Computing Contract - Project,Non-ringfenced Programme DEL,IT services,"28,499.62"
WIPRO Holdings London,897151,29/03/2019,3,STANDARD,GB_VAT,End User Computing Contract - Project,Non-ringfenced Programme DEL,IT services,"11,399.84"
WIPRO Holdings London,897151,11/04/2019,1,,,End User Computing Contract - Project,Non-ringfenced Programme DEL,IT services,"139,010.85"
WIPRO Holdings London,897151,11/04/2019,2,STANDARD,GB_VAT,End User Computing Contract - Project,Non-ringfenced Programme DEL,IT services,"27,802.17"
Xerox (UK) Ltd,8156,01/04/2019,1,,,Print Contract - Project,Non-ringfenced Programme DEL,Printing Costs,"129,137.83"
Xerox (UK) Ltd,8156,01/04/2019,2,,,Service Management,Non-ringfenced Programme DEL,Printing Costs,"2,648.00"
Xerox (UK) Ltd,8156,01/04/2019,3,STANDARD,GB_VAT,Print Contract - Project,Non-ringfenced Programme DEL,Printing Costs,"26,357.16"
HM Revenue and Customs,SS,31/03/2019,2,,,Other Corporate Admin Payments,Non-ringfenced Admin DEL,Apprenticeship Levy payments Permanent,"7,188.60"
HM Revenue and Customs,SS,31/03/2019,3,,,Other Corporate Programme Payments,Non-ringfenced Programme DEL,Apprenticeship Levy payments Permanent,"112,621.40"
3PB (3 Paper Buildings),Feest Adam ,26/04/2019,1,,,Wessex Crown Court Unit,Non-ringfenced Programme DEL,Crown Court Graduated Fee Scheme,"6,750.00"
3PB (3 Paper Buildings),Feest Adam ,26/04/2019,2,,,Wessex Crown Court Unit,Non-ringfenced Programme DEL,Crown Court Graduated Fee Scheme,197.4
3PB (3 Paper Buildings),Feest Adam ,26/04/2019,3,,,Wessex Crown Court Unit,Non-ringfenced Programme DEL,Crown Court Graduated Fee Scheme,"14,880.00"
3PB (3 Paper Buildings),Feest Adam ,26/04/2019,4,,,Wessex Crown Court Unit,Non-ringfenced Programme DEL,Crown Court Graduated Fee Scheme,337.5
3PB (3 Paper Buildings),Feest Adam ,26/04/2019,5,,,Wessex Crown Court Unit,Non-ringfenced Programme DEL,Crown Court Graduated Fee Scheme,834.21
3PB (3 Paper Buildings),Feest Adam ,26/04/2019,6,,,Wessex Crown Court Unit,Non-ringfenced Programme DEL,Crown Court Graduated Fee Scheme,157.5
3PB (3 Paper Buildings),Feest Adam ,26/04/2019,7,STANDARD,GB_VAT,Wessex Crown Court Unit,Non-ringfenced Programme DEL,Crown Court Graduated Fee Scheme,"4,631.32"
Drystone Chambers (Dyers),Matthews Claire ,17/04/2019,1,,,East of England Complex Casework Unit,Non-ringfenced Programme DEL,Crown Court Graduated Fee Scheme,"10,830.00"
Drystone Chambers (Dyers),Matthews Claire ,17/04/2019,2,,,East of England Complex Casework Unit,Non-ringfenced Programme DEL,Crown Court Graduated Fee Scheme,"9,940.00"
Drystone Chambers (Dyers),Matthews Claire ,17/04/2019,3,,,East of England Complex Casework Unit,Non-ringfenced Programme DEL,Crown Court Graduated Fee Scheme,541.5
Drystone Chambers (Dyers),Matthews Claire ,17/04/2019,4,,,East of England Complex Casework Unit,Non-ringfenced Programme DEL,Crown Court Graduated Fee Scheme,353.1
Drystone Chambers (Dyers),Matthews Claire ,17/04/2019,5,,,East of England Complex Casework Unit,Non-ringfenced Programme DEL,Crown Court Graduated Fee Scheme,82.95
Drystone Chambers (Dyers),Matthews Claire ,17/04/2019,6,,,East of England Complex Casework Unit,Non-ringfenced Programme DEL,Crown Court Graduated Fee Scheme,557.1
Drystone Chambers (Dyers),Matthews Claire ,17/04/2019,7,STANDARD,GB_VAT,East of England Complex Casework Unit,Non-ringfenced Programme DEL,Crown Court Graduated Fee Scheme,"4,460.93"
Cushman & Wakefield Debenham Tie Lung Ltd London,872172,03/04/2019,1,,,Estate and FM: Administration,Non-ringfenced Admin DEL,Landlord service charge,"25,820.67"
Cushman & Wakefield Debenham Tie Lung Ltd London,872172,03/04/2019,2,,,Estate and FM: Administration,Non-ringfenced Admin DEL,Landlord service charge,"7,478.19"
Cushman & Wakefield Debenham Tie Lung Ltd London,872172,03/04/2019,3,,,Estate and FM: Programme,Non-ringfenced Programme DEL,Operating lease rentals Property,"69,742.46"
Cushman & Wakefield Debenham Tie Lung Ltd London,872172,03/04/2019,4,,,Estate and FM: Programme,Non-ringfenced Programme DEL,Landlord service charge,832.22
Cushman & Wakefield Debenham Tie Lung Ltd London,872172,03/04/2019,5,,,Estate and FM: Programme,Non-ringfenced Programme DEL,Landlord service charge,"1,917.80"
Cushman & Wakefield Debenham Tie Lung Ltd London,872172,03/04/2019,6,,,Estate and FM: Programme,Non-ringfenced Programme DEL,Operating lease rentals Property,"15,000.00"
Cushman & Wakefield Debenham Tie Lung Ltd London,872172,03/04/2019,7,,,Estate and FM: Programme,Non-ringfenced Programme DEL,Operating lease rentals Property,"25,500.00"
Cushman & Wakefield Debenham Tie Lung Ltd London,872172,03/04/2019,8,,,Estate and FM: Programme,Non-ringfenced Programme DEL,Operating lease rentals Property,"-3,368.78"
Cushman & Wakefield Debenham Tie Lung Ltd London,872172,03/04/2019,9,,,Estate and FM: Programme,Non-ringfenced Programme DEL,Operating lease rentals Property,"22,200.00"
Cushman & Wakefield Debenham Tie Lung Ltd London,872172,03/04/2019,11,STANDARD,GB_VAT,Estate and FM: Administration,Non-ringfenced Admin DEL,Landlord service charge,"24,924.51"
Cushman & Wakefield Debenham Tie Lung Ltd London,872172,03/04/2019,12,,,Estate and FM: Programme,Non-ringfenced Programme DEL,Landlord service charge,"9,915.18"
Cushman & Wakefield Debenham Tie Lung Ltd London,872172,17/04/2019,1,,,Estate and FM: Programme,Non-ringfenced Programme DEL,Landlord service charge,"53,809.10"
Cushman & Wakefield Debenham Tie Lung Ltd London,872172,17/04/2019,2,,,Estate and FM: Programme,Non-ringfenced Programme DEL,National non domestic rates,"180,121.47"
Cushman & Wakefield Debenham Tie Lung Ltd London,872172,17/04/2019,3,,,Estate and FM: Programme,Non-ringfenced Programme DEL,Landlord service charge,"10,541.89"
Cushman & Wakefield Debenham Tie Lung Ltd London,872172,17/04/2019,4,,,Estate and FM: Programme,Non-ringfenced Programme DEL,National non domestic rates,"4,704.00"
Cushman & Wakefield Debenham Tie Lung Ltd London,872172,17/04/2019,5,,,Estate and FM: Programme,Non-ringfenced Programme DEL,Landlord service charge,"26,500.00"
Cushman & Wakefield Debenham Tie Lung Ltd London,872172,17/04/2019,6,,,Estate and FM: Programme,Non-ringfenced Programme DEL,Landlord service charge,831.05
Cushman & Wakefield Debenham Tie Lung Ltd London,872172,17/04/2019,7,,,Estate and FM: Programme,Non-ringfenced Programme DEL,National non domestic rates,"13,775.00"
Cushman & Wakefield Debenham Tie Lung Ltd London,872172,17/04/2019,8,,,Estate and FM: Programme,Non-ringfenced Programme DEL,National non domestic rates,"21,511.00"
Cushman & Wakefield Debenham Tie Lung Ltd London,872172,17/04/2019,9,,,Estate and FM: Programme,Non-ringfenced Programme DEL,Property management fees,"6,213.92"
Cushman & Wakefield Debenham Tie Lung Ltd London,872172,17/04/2019,10,,,Estate and FM: Programme,Non-ringfenced Programme DEL,Operating lease rentals Property,"95,156.60"
Cushman & Wakefield Debenham Tie Lung Ltd London,872172,17/04/2019,11,,,Estate and FM: Programme,Non-ringfenced Programme DEL,Operating lease rentals Property,"47,000.00"
Cushman & Wakefield Debenham Tie Lung Ltd London,872172,17/04/2019,12,,,Estate and FM: Programme,Non-ringfenced Programme DEL,National non domestic rates,"5,731.00"
Cushman & Wakefield Debenham Tie Lung Ltd London,872172,17/04/2019,13,,,Estate and FM: Programme,Non-ringfenced Programme DEL,Landlord service charge,"55,803.97"
Cushman & Wakefield Debenham Tie Lung Ltd London,872172,17/04/2019,14,,,Estate and FM: Programme,Non-ringfenced Programme DEL,National non domestic rates,"24,334.91"
Cushman & Wakefield Debenham Tie Lung Ltd London,872172,17/04/2019,15,,,Estate and FM: Programme,Non-ringfenced Programme DEL,Operating lease rentals Property,"12,000.00"
Cushman & Wakefield Debenham Tie Lung Ltd London,872172,17/04/2019,16,,,Estate and FM: Administration,Non-ringfenced Admin DEL,National non domestic rates,"9,659.00"
Cushman & Wakefield Debenham Tie Lung Ltd London,872172,17/04/2019,17,,,Estate and FM: Administration,Non-ringfenced Admin DEL,National non domestic rates,491
Cushman & Wakefield Debenham Tie Lung Ltd London,872172,17/04/2019,20,STANDARD,GB_VAT,Estate and FM: Programme,Non-ringfenced Programme DEL,Landlord service charge,"14,279.19"
Clarity Travel Management,707008,18/03/2019,1,,,DTUS,Non-ringfenced Programme DEL,UK Other travel,232.4
Clarity Travel Management,707008,18/03/2019,2,,,Private Office,Non-ringfenced Programme DEL,UK Other travel,364.65
Clarity Travel Management,707008,18/03/2019,3,,,DTS Directorate,Non-ringfenced Programme DEL,UK Other travel,220.45
Clarity Travel Management,707008,18/03/2019,4,,,IT Stewardship,Non-ringfenced Programme DEL,UK Night Subsistence,982.5
Clarity Travel Management,707008,18/03/2019,,STANDARD,GB_VAT,Solutions Development,Non-ringfenced Programme DEL,UK Night Subsistence,"1,615.99"
Clarity Travel Management,707008,18/03/2019,7,,,IT Stewardship,Non-ringfenced Programme DEL,UK Other travel,242.35
Clarity Travel Management,707008,18/03/2019,8,,,Solutions Development,Non-ringfenced Programme DEL,UK Night Subsistence,654.75
Clarity Travel Management,707008,18/03/2019,9,,,Solutions Development,Non-ringfenced Programme DEL,UK Other travel,297.5
Clarity Travel Management,707008,18/03/2019,10,,,Analysis and Delivery,Non-ringfenced Programme DEL,UK Night Subsistence,"1,091.21"
Clarity Travel Management,707008,18/03/2019,11,,,Analysis and Delivery,Non-ringfenced Programme DEL,UK Other travel,"1,839.50"
Clarity Travel Management,707008,18/03/2019,12,,,Service Transition,Non-ringfenced Programme DEL,UK Night Subsistence,237.58
Clarity Travel Management,707008,18/03/2019,13,,,Service Transition,Non-ringfenced Programme DEL,UK Other travel,273.5
Clarity Travel Management,707008,18/03/2019,14,,,Service Integration and Operations,Non-ringfenced Programme DEL,UK Night Subsistence,130
Clarity Travel Management,707008,18/03/2019,15,,,Service Integration and Operations,Non-ringfenced Programme DEL,UK Other travel,547
Clarity Travel Management,707008,18/03/2019,16,,,Director of Finance,Non-ringfenced Programme DEL,UK Other travel,110.25
Clarity Travel Management,707008,18/03/2019,17,,,Departmental Security Unit: Admin,Non-ringfenced Programme DEL,UK Night Subsistence,249.08
Clarity Travel Management,707008,18/03/2019,18,,,Departmental Security Unit: Admin,Non-ringfenced Programme DEL,UK Night Subsistence,943.4
Clarity Travel Management,707008,18/03/2019,19,,,Financial Reporting,Non-ringfenced Programme DEL,UK Other travel,340.05
Clarity Travel Management,707008,18/03/2019,20,,,Finance Operations,Non-ringfenced Programme DEL,UK Night Subsistence,114.17
Clarity Travel Management,707008,18/03/2019,21,,,Finance Operations,Non-ringfenced Programme DEL,UK Other travel,45.7
Clarity Travel Management,707008,18/03/2019,22,,,ERP Project: Admin,Non-ringfenced Programme DEL,UK Night Subsistence,333.33
Clarity Travel Management,707008,18/03/2019,23,,,ERP Project: Admin,Non-ringfenced Programme DEL,UK Other travel,414.3
Clarity Travel Management,707008,18/03/2019,24,,,Corporate HR,Non-ringfenced Programme DEL,UK Night Subsistence,65
Clarity Travel Management,707008,18/03/2019,25,,,Corporate HR,Non-ringfenced Programme DEL,UK Other travel,-60
Clarity Travel Management,707008,18/03/2019,26,,,HR Strategy and Inclusion,Non-ringfenced Programme DEL,UK Night Subsistence,584.25
Clarity Travel Management,707008,18/03/2019,27,,,HR Strategy and Inclusion,Non-ringfenced Programme DEL,UK Other travel,"2,066.25"
Clarity Travel Management,707008,18/03/2019,28,,,Learning and Development General,Non-ringfenced Programme DEL,UK Night Subsistence,"1,164.33"
Clarity Travel Management,707008,18/03/2019,29,,,Learning and Development General,Non-ringfenced Programme DEL,UK Other travel,"1,392.90"
Clarity Travel Management,707008,18/03/2019,30,,,Legal Training,Non-ringfenced Programme DEL,UK Other travel,-11
Clarity Travel Management,707008,18/03/2019,31,,,HR Operations,Non-ringfenced Programme DEL,UK Night Subsistence,245
Clarity Travel Management,707008,18/03/2019,32,,,HR Operations,Non-ringfenced Programme DEL,UK Other travel,"2,866.70"
Clarity Travel Management,707008,18/03/2019,33,,,Resourcing,Non-ringfenced Programme DEL,UK Other travel,"1,739.50"
Clarity Travel Management,707008,18/03/2019,34,,,Permanent Transfer Costs,Non-ringfenced Programme DEL,UK Other travel,"2,128.90"
Clarity Travel Management,707008,18/03/2019,35,,,Corporate Communication,Non-ringfenced Programme DEL,UK Other travel,116
Clarity Travel Management,707008,18/03/2019,36,,,Press Office,Non-ringfenced Programme DEL,UK Other travel,190.2
Clarity Travel Management,707008,18/03/2019,37,,,Parliamentary and Public Correspondence Unit,Non-ringfenced Programme DEL,UK Night Subsistence,64.17
Clarity Travel Management,707008,18/03/2019,38,,,Parliamentary and Public Correspondence Unit,Non-ringfenced Programme DEL,UK Other travel,197.8
Clarity Travel Management,707008,18/03/2019,39,,,Operations: Business Support,Non-ringfenced Programme DEL,Overseas Other travel,7.5
Clarity Travel Management,707008,18/03/2019,40,,,Operations: Business Support,Non-ringfenced Programme DEL,UK Night Subsistence,852.3
Clarity Travel Management,707008,18/03/2019,41,,,Operations: Business Support,Non-ringfenced Programme DEL,UK Other travel,"6,765.80"
Clarity Travel Management,707008,18/03/2019,42,,,Operations: Digital,Non-ringfenced Programme DEL,UK Night Subsistence,122.5
Clarity Travel Management,707008,18/03/2019,43,,,Operations: Digital,Non-ringfenced Programme DEL,UK Other travel,"2,240.40"
Clarity Travel Management,707008,18/03/2019,44,,,Operations: Delivery,Non-ringfenced Programme DEL,UK Night Subsistence,431.66
Clarity Travel Management,707008,18/03/2019,45,,,Operations: Delivery,Non-ringfenced Programme DEL,UK Other travel,"2,436.45"
Clarity Travel Management,707008,18/03/2019,46,,,Legal Development Team,Non-ringfenced Programme DEL,UK Night Subsistence,442.3
Clarity Travel Management,707008,18/03/2019,47,,,Legal Development Team,Non-ringfenced Programme DEL,UK Other travel,"1,321.60"
Clarity Travel Management,707008,18/03/2019,48,,,Estates and Commercial,Non-ringfenced Programme DEL,UK Other travel,668.8
Clarity Travel Management,707008,18/03/2019,49,,,Departmental Security Unit: Admin,Non-ringfenced Programme DEL,UK Night Subsistence,250
Clarity Travel Management,707008,18/03/2019,50,,,Departmental Security Unit: Admin,Non-ringfenced Programme DEL,UK Other travel,"1,328.50"
Clarity Travel Management,707008,18/03/2019,51,,,Corporate Services Director Business Management Team,Non-ringfenced Programme DEL,UK Night Subsistence,65.83
Clarity Travel Management,707008,25/03/2019,1,,,Independent Enquiry into Child Sexual Abuse,Non-ringfenced Programme DEL,UK Night Subsistence,277.5
Clarity Travel Management,707008,25/03/2019,,STANDARD,GB_VAT,Solutions Development,Non-ringfenced Programme DEL,UK Night Subsistence,"2,351.45"
Clarity Travel Management,707008,25/03/2019,3,,,DTUS,Non-ringfenced Programme DEL,UK Other travel,998.7
Clarity Travel Management,707008,25/03/2019,4,,,DTS Directorate,Non-ringfenced Admin DEL,UK Other travel,150.6
Clarity Travel Management,707008,25/03/2019,5,,,IT Stewardship,Non-ringfenced Admin DEL,UK Night Subsistence,732.87
Clarity Travel Management,707008,25/03/2019,7,,,IT Stewardship,Non-ringfenced Admin DEL,UK Other travel,"1,160.65"
Clarity Travel Management,707008,25/03/2019,8,,,Solutions Development,Non-ringfenced Programme DEL,UK Night Subsistence,469.17
Clarity Travel Management,707008,25/03/2019,9,,,Solutions Development,Non-ringfenced Programme DEL,UK Other travel,604.3
Clarity Travel Management,707008,25/03/2019,10,,,Analysis and Delivery,Non-ringfenced Programme DEL,UK Night Subsistence,330
Clarity Travel Management,707008,25/03/2019,11,,,Analysis and Delivery,Non-ringfenced Programme DEL,UK Other travel,"1,293.50"
Clarity Travel Management,707008,25/03/2019,12,,,Service Transition,Non-ringfenced Programme DEL,UK Night Subsistence,251.67
Clarity Travel Management,707008,25/03/2019,13,,,Service Transition,Non-ringfenced Programme DEL,UK Other travel,817
Clarity Travel Management,707008,25/03/2019,14,,,Service Integration and Operations,Non-ringfenced Programme DEL,UK Night Subsistence,220
Clarity Travel Management,707008,25/03/2019,15,,,Service Integration and Operations,Non-ringfenced Programme DEL,UK Other travel,469.9
Clarity Travel Management,707008,25/03/2019,16,,,Departmental Security Unit: Admin,Non-ringfenced Admin DEL,UK Other travel,426.55
Clarity Travel Management,707008,25/03/2019,17,,,Director of Finance,Non-ringfenced Admin DEL,UK Other travel,254
Clarity Travel Management,707008,25/03/2019,18,,,Information Management Unit,Non-ringfenced Admin DEL,UK Other travel,35.3
Clarity Travel Management,707008,25/03/2019,19,,,Financial Reporting,Non-ringfenced Admin DEL,UK Other travel,346.3
Clarity Travel Management,707008,25/03/2019,20,,,Finance Operations,Non-ringfenced Admin DEL,UK Night Subsistence,56.67
Clarity Travel Management,707008,25/03/2019,21,,,Finance Operations,Non-ringfenced Admin DEL,UK Other travel,49.5
Clarity Travel Management,707008,25/03/2019,22,,,Strategic Financial Planning,Non-ringfenced Admin DEL,UK Other travel,658.4
Clarity Travel Management,707008,25/03/2019,23,,,ERP Project: Admin,Non-ringfenced Admin DEL,UK Night Subsistence,"1,001.68"
Clarity Travel Management,707008,25/03/2019,24,,,ERP Project: Admin,Non-ringfenced Admin DEL,UK Other travel,742.8
Clarity Travel Management,707008,25/03/2019,25,,,Corporate HR,Non-ringfenced Admin DEL,UK Night Subsistence,141.67
Clarity Travel Management,707008,25/03/2019,26,,,Corporate HR,Non-ringfenced Admin DEL,UK Other travel,800
Clarity Travel Management,707008,25/03/2019,27,,,HR Strategy and Inclusion,Non-ringfenced Admin DEL,UK Night Subsistence,609.18
Clarity Travel Management,707008,25/03/2019,28,,,HR Strategy and Inclusion,Non-ringfenced Admin DEL,UK Other travel,"3,463.95"
Clarity Travel Management,707008,25/03/2019,29,,,Learning and Development General,Non-ringfenced Admin DEL,UK Night Subsistence,513.34
Clarity Travel Management,707008,25/03/2019,30,,,Learning and Development General,Non-ringfenced Admin DEL,UK Other travel,"2,252.05"
Clarity Travel Management,707008,25/03/2019,31,,,Litigation,Non-ringfenced Admin DEL,UK Other travel,131
Clarity Travel Management,707008,25/03/2019,32,,,HR Operations,Non-ringfenced Admin DEL,UK Night Subsistence,624.99
Clarity Travel Management,707008,25/03/2019,33,,,HR Operations,Non-ringfenced Admin DEL,UK Other travel,"1,694.00"
Clarity Travel Management,707008,25/03/2019,34,,,Lesbian Gay Bisexual and Transgender Network,Non-ringfenced Admin DEL,UK Night Subsistence,90
Clarity Travel Management,707008,25/03/2019,35,,,Lesbian Gay Bisexual and Transgender Network,Non-ringfenced Admin DEL,UK Other travel,253.5
Clarity Travel Management,707008,25/03/2019,36,,,Resourcing,Non-ringfenced Admin DEL,UK Other travel,593.32
Clarity Travel Management,707008,25/03/2019,37,,,Permanent Transfer Costs,Non-ringfenced Admin DEL,UK Other travel,78.9
Clarity Travel Management,707008,25/03/2019,38,,,Staff Network: General,Non-ringfenced Admin DEL,UK Other travel,868.7
Clarity Travel Management,707008,25/03/2019,39,,,Head of Communication,Non-ringfenced Admin DEL,UK Other travel,434.2
Clarity Travel Management,707008,25/03/2019,40,,,Parliamentary and Public Correspondence Unit,Non-ringfenced Admin DEL,UK Other travel,291.9
Clarity Travel Management,707008,25/03/2019,41,,,Parliamentary and Public Correspondence Unit,Non-ringfenced Admin DEL,UK Night Subsistence,70.83
Clarity Travel Management,707008,25/03/2019,42,,,Operations: Business Support,Non-ringfenced Admin DEL,UK Other travel,209.74
Clarity Travel Management,707008,25/03/2019,43,,,Operations: Business Support,Non-ringfenced Admin DEL,UK Night Subsistence,"2,031.62"
Clarity Travel Management,707008,25/03/2019,44,,,Operations: Business Support,Non-ringfenced Admin DEL,UK Other travel,"8,585.70"
Clarity Travel Management,707008,25/03/2019,45,,,Operations: Digital,Non-ringfenced Admin DEL,UK Night Subsistence,898
Clarity Travel Management,707008,25/03/2019,46,,,Operations: Digital,Non-ringfenced Admin DEL,UK Other travel,"1,823.65"
Clarity Travel Management,707008,25/03/2019,47,,,Operations: Delivery,Non-ringfenced Programme DEL,UK Night Subsistence,"1,549.17"
Clarity Travel Management,707008,25/03/2019,48,,,Operations: Delivery,Non-ringfenced Programme DEL,UK Other travel,"1,811.40"
Clarity Travel Management,707008,25/03/2019,49,,,Legal Development Team,Non-ringfenced Programme DEL,UK Night Subsistence,669.17
Clarity Travel Management,707008,25/03/2019,50,,,Legal Development Team,Non-ringfenced Programme DEL,UK Other travel,"1,516.90"
Clarity Travel Management,707008,25/03/2019,51,,,Estates and Commercial,Non-ringfenced Programme DEL,UK Night Subsistence,309.92
Clarity Travel Management,707008,25/03/2019,52,,,Estates and Commercial,Non-ringfenced Admin DEL,UK Other travel,"1,534.50"
Clarity Travel Management,707008,25/03/2019,53,,,Information Management Unit,Non-ringfenced Admin DEL,UK Night Subsistence,316.67
Clarity Travel Management,707008,25/03/2019,54,,,Information Management Unit,Non-ringfenced Admin DEL,UK Other travel,265.1
Clarity Travel Management,707008,25/03/2019,55,,,Departmental Security Unit: Admin,Non-ringfenced Admin DEL,UK Other travel,496.6
Clarity Travel Management,707008,25/03/2019,56,,,Corporate Services Director Business Management Team,Non-ringfenced Admin DEL,UK Other travel,308.7
Clarity Travel Management,707008,01/04/2019,1,,,Independent Enquiry into Child Sexual Abuse,Non-ringfenced Programme DEL,UK Other travel,746
Clarity Travel Management,707008,01/04/2019,2,,,DTUS,Non-ringfenced Programme DEL,UK Other travel,34.9
Clarity Travel Management,707008,01/04/2019,3,,,Private Office,Non-ringfenced Programme DEL,UK Other travel,"7,776.86"
Clarity Travel Management,707008,01/04/2019,4,,,Private Office,Non-ringfenced Programme DEL,UK Other travel,104.8
Clarity Travel Management,707008,01/04/2019,5,,,IT Stewardship,Non-ringfenced Programme DEL,UK Night Subsistence,247.5
Clarity Travel Management,707008,01/04/2019,7,STANDARD,GB_VAT,Resourcing,Non-ringfenced Programme DEL,UK Night Subsistence,51
Clarity Travel Management,707008,01/04/2019,8,,,IT Stewardship,Non-ringfenced Programme DEL,UK Other travel,495.75
Clarity Travel Management,707008,01/04/2019,9,,,Solutions Development,Non-ringfenced Programme DEL,UK Night Subsistence,282.5
Clarity Travel Management,707008,01/04/2019,10,,,Solutions Development,Non-ringfenced Programme DEL,UK Other travel,631
Clarity Travel Management,707008,01/04/2019,11,,,Analysis and Delivery,Non-ringfenced Programme DEL,UK Night Subsistence,140
Clarity Travel Management,707008,01/04/2019,12,,,Analysis and Delivery,Non-ringfenced Programme DEL,UK Other travel,"2,403.65"
Clarity Travel Management,707008,01/04/2019,13,,,Service Transition,Non-ringfenced Programme DEL,UK Other travel,363.5
Clarity Travel Management,707008,01/04/2019,14,,,Service Transition,Non-ringfenced Programme DEL,UK Night Subsistence,81.67
Clarity Travel Management,707008,01/04/2019,15,,,Director of Finance,Non-ringfenced Programme DEL,UK Other travel,205
Clarity Travel Management,707008,01/04/2019,16,,,Financial Reporting,Non-ringfenced Programme DEL,UK Other travel,81.35
Clarity Travel Management,707008,01/04/2019,17,,,Finance Operations,Non-ringfenced Programme DEL,UK Other travel,65.2
Clarity Travel Management,707008,01/04/2019,18,,,Strategic Financial Planning,Non-ringfenced Programme DEL,UK Night Subsistence,182.25
Clarity Travel Management,707008,01/04/2019,19,,,Strategic Financial Planning,Non-ringfenced Programme DEL,UK Other travel,-94.65
Clarity Travel Management,707008,01/04/2019,20,,,ERP Project: Admin,Non-ringfenced Programme DEL,UK Night Subsistence,199.58
Clarity Travel Management,707008,01/04/2019,21,,,ERP Project: Admin,Non-ringfenced Programme DEL,UK Other travel,683
Clarity Travel Management,707008,01/04/2019,22,,,Corporate HR,Non-ringfenced Programme DEL,UK Other travel,667.8
Clarity Travel Management,707008,01/04/2019,23,,,HR Strategy and Inclusion,Non-ringfenced Programme DEL,UK Night Subsistence,740.79
Clarity Travel Management,707008,01/04/2019,24,,,HR Strategy and Inclusion,Non-ringfenced Programme DEL,UK Other travel,"2,714.50"
Clarity Travel Management,707008,01/04/2019,25,,,Learning and Development General,Non-ringfenced Programme DEL,UK Night Subsistence,106.5
Clarity Travel Management,707008,01/04/2019,26,,,Learning and Development General,Non-ringfenced Programme DEL,UK Other travel,"2,769.75"
Clarity Travel Management,707008,01/04/2019,27,,,HR Operations,Non-ringfenced Programme DEL,UK Other travel,"1,177.55"
Clarity Travel Management,707008,01/04/2019,28,,,Lesbian Gay Bisexual and Transgender Network,Non-ringfenced Programme DEL,UK Other travel,226
Clarity Travel Management,707008,01/04/2019,29,,,Resourcing,Non-ringfenced Programme DEL,UK Night Subsistence,255
Clarity Travel Management,707008,01/04/2019,31,,,Resourcing,Non-ringfenced Programme DEL,UK Other travel,665.2
Clarity Travel Management,707008,01/04/2019,32,,,Permanent Transfer Costs,Non-ringfenced Programme DEL,UK Other travel,833.05
Clarity Travel Management,707008,01/04/2019,33,,,Corporate Communication,Non-ringfenced Programme DEL,UK Other travel,190
Clarity Travel Management,707008,01/04/2019,34,,,Press Office,Non-ringfenced Programme DEL,UK Night Subsistence,57.92
Clarity Travel Management,707008,01/04/2019,35,,,Press Office,Non-ringfenced Programme DEL,UK Other travel,927.5
Clarity Travel Management,707008,01/04/2019,36,,,Operations: Business Support,Non-ringfenced Programme DEL,UK Other travel,161.82
Clarity Travel Management,707008,01/04/2019,37,,,Operations: Business Support,Non-ringfenced Programme DEL,UK Night Subsistence,887.92
Clarity Travel Management,707008,01/04/2019,39,,,Operations: Business Support,Non-ringfenced Admin DEL,UK Other travel,"5,428.90"
Clarity Travel Management,707008,01/04/2019,40,,,Operations: Digital,Non-ringfenced Programme DEL,UK Night Subsistence,893.34
Clarity Travel Management,707008,01/04/2019,42,,,Operations: Digital,Non-ringfenced Programme DEL,UK Night Subsistence,608.55
Clarity Travel Management,707008,01/04/2019,43,,,Operations: Delivery,Non-ringfenced Programme DEL,UK Night Subsistence,910
Clarity Travel Management,707008,01/04/2019,45,,,Operations: Delivery,Non-ringfenced Programme DEL,UK Other travel,"2,506.00"
Clarity Travel Management,707008,01/04/2019,47,,,Estates and Commercial,Non-ringfenced Programme DEL,UK Night Subsistence,113.33
Clarity Travel Management,707008,01/04/2019,48,,,Estates and Commercial,Non-ringfenced Programme DEL,UK Other travel,690.95
Clarity Travel Management,707008,01/04/2019,49,,,Departmental Security Unit: Admin,Non-ringfenced Programme DEL,UK Night Subsistence,352.51
Clarity Travel Management,707008,01/04/2019,52,,,Legal Development Team,Non-ringfenced Programme DEL,UK Other travel,"1,429.80"
Clarity Travel Management,707008,01/04/2019,53,,,Departmental Security Unit: Admin,Non-ringfenced Programme DEL,UK Other travel,594.5
Clarity Travel Management,707008,01/04/2019,54,,,Corporate Services Director Business Management Team,Non-ringfenced Programme DEL,UK Other travel,164.5
Clarity Travel Management,707008,01/04/2019,,STANDARD,GB_VAT,Strategic Financial Planning,Non-ringfenced Programme DEL,UK Night Subsistence,"1,039.14"
Cripps LLP Tunbridge Wells,7433,26/03/2019,1,,,Estate and FM: Programme,Non-ringfenced Programme DEL,New Works: non capital,"149,600.00"
Cripps LLP Tunbridge Wells,7433,26/03/2019,2,,,Estate and FM: Administration,Non-ringfenced Admin DEL,New Works: non capital,"26,400.00"
GovNow London,892231,01/03/2019,1,,,Architecture Contractors,Non-ringfenced Programme DEL,IT services,"18,060.00"
GovNow London,892231,01/03/2019,2,,,Architecture Contractors,Non-ringfenced Programme DEL,IT services,"48,480.00"
GovNow London,892231,01/03/2019,3,,,Architecture Contractors,Non-ringfenced Programme DEL,IT services,"23,760.00"
GovNow London,892231,01/03/2019,4,,,Architecture Contractors,Non-ringfenced Programme DEL,IT services,"18,900.00"
GovNow London,892231,01/03/2019,5,,,Architecture Contractors,Non-ringfenced Programme DEL,IT services,124.5
GovNow London,892231,01/03/2019,6,,,Architecture Contractors,Non-ringfenced Programme DEL,IT services,"23,760.00"
GovNow London,892231,01/03/2019,7,STANDARD,GB_VAT,Architecture Contractors,Non-ringfenced Programme DEL,IT services,"26,616.90"
CGI IT UK Ltd,481955,01/03/2019,1,,,Finance Operations,Non-ringfenced Programme DEL,IT services,"37,509.51"
CGI IT UK Ltd,481955,01/03/2019,2,STANDARD,GB_VAT,Finance Operations,Non-ringfenced Programme DEL,IT services,"7,501.90"
CGI IT UK Ltd,481955,27/03/2019,1,,,Analysis and Delivery: non CMS,Non-ringfenced Programme DEL,IT services,"22,814.20"
CGI IT UK Ltd,481955,27/03/2019,2,STANDARD,GB_VAT,Analysis and Delivery: non CMS,Non-ringfenced Programme DEL,IT services,"4,562.84"
CGI IT UK Ltd,481955,28/03/2019,1,,,Apps and Hosting Contract,Non-ringfenced Programme DEL,IT services,"139,952.84"
CGI IT UK Ltd,481955,28/03/2019,2,STANDARD,GB_VAT,Apps and Hosting Contract,Non-ringfenced Programme DEL,IT services,"27,990.57"
CGI IT UK Ltd,481955,29/03/2019,1,,,ERP Project: Programme,Non-ringfenced Programme DEL,IT services,"20,837.57"
CGI IT UK Ltd,481955,29/03/2019,2,STANDARD,GB_VAT,ERP Project: Programme,Non-ringfenced Programme DEL,IT services,"4,167.51"
CGI IT UK Ltd,481955,29/03/2019,1,,,ERP Project: Programme,Non-ringfenced Programme DEL,IT services,"22,605.50"
CGI IT UK Ltd,481955,29/03/2019,2,STANDARD,GB_VAT,ERP Project: Programme,Non-ringfenced Programme DEL,IT services,"4,521.10"
CGI IT UK Ltd,481955,03/04/2019,1,,,ICT Exit and Transition Programme,Non-ringfenced Programme DEL,IT services,"297,926.00"
CGI IT UK Ltd,481955,03/04/2019,2,STANDARD,GB_VAT,ICT Exit and Transition Programme,Non-ringfenced Programme DEL,IT services,"59,585.20"
CGI IT UK Ltd,481955,05/04/2019,1,,,Service Desk Contract - Project,Non-ringfenced Programme DEL,IT services,"88,877.86"
CGI IT UK Ltd,481955,05/04/2019,2,STANDARD,GB_VAT,Service Desk Contract - Project,Non-ringfenced Programme DEL,IT services,"17,775.57"
CGI IT UK Ltd,481955,08/04/2019,1,,,Finance Operations,Non-ringfenced Programme DEL,IT services,"37,509.51"
CGI IT UK Ltd,481955,08/04/2019,2,STANDARD,GB_VAT,Finance Operations,Non-ringfenced Programme DEL,IT services,"7,501.90"
CGI IT UK Ltd,481955,08/04/2019,1,,,Apps and Hosting Contract,Non-ringfenced Programme DEL,IT services,"116,609.20"
CGI IT UK Ltd,481955,08/04/2019,2,STANDARD,GB_VAT,Apps and Hosting Contract,Non-ringfenced Programme DEL,IT services,"23,321.84"
CGI IT UK Ltd,481955,09/04/2019,1,,,Apps and Hosting Contract - Project,Non-ringfenced Programme DEL,IT services,"353,391.44"
CGI IT UK Ltd,481955,09/04/2019,2,STANDARD,GB_VAT,Apps and Hosting Contract - Project,Non-ringfenced Programme DEL,IT services,"70,678.29"
CGI IT UK Ltd,481955,17/04/2019,1,,,Analysis and Delivery: non CMS,Non-ringfenced Programme DEL,IT services,"29,655.96"
CGI IT UK Ltd,481955,17/04/2019,2,STANDARD,GB_VAT,Analysis and Delivery: non CMS,Non-ringfenced Programme DEL,IT services,"5,931.19"
CGI IT UK Ltd,481955,18/04/2019,1,,,Solution Management,Non-ringfenced Programme DEL,IT services,"30,940.50"
CGI IT UK Ltd,481955,18/04/2019,2,STANDARD,GB_VAT,Solution Management,Non-ringfenced Programme DEL,IT services,"6,188.10"
CGI IT UK Ltd,481955,23/04/2019,1,,,ICT Exit and Transition Programme,Non-ringfenced Programme DEL,IT services,"68,285.24"
CGI IT UK Ltd,481955,23/04/2019,2,STANDARD,GB_VAT,ICT Exit and Transition Programme,Non-ringfenced Programme DEL,IT services,"13,657.05"
CGI IT UK Ltd,481955,23/04/2019,1,,,Analysis and Delivery: non CMS,Non-ringfenced Programme DEL,IT services,"30,585.62"
CGI IT UK Ltd,481955,23/04/2019,2,STANDARD,GB_VAT,Analysis and Delivery: non CMS,Non-ringfenced Programme DEL,IT services,"6,117.12"
CGI IT UK Ltd,481955,09/04/2019,1,,,Case Management,Non-ringfenced Programme DEL,IT services,"415,005.71"
CGI IT UK Ltd,481955,09/04/2019,2,STANDARD,GB_VAT,Case Management,Non-ringfenced Programme DEL,IT services,"83,001.14"
CGI IT UK Ltd,481955,10/04/2019,1,,,Case Management,Non-ringfenced Programme DEL,IT services,"340,404.60"
CGI IT UK Ltd,481955,10/04/2019,2,STANDARD,GB_VAT,Case Management,Non-ringfenced Programme DEL,IT services,"68,080.92"
3 Raymond Buildings,Davies Hugh ,10/04/2019,1,,,London North Complex Casework Unit,Non-ringfenced Programme DEL,Crown Court Graduated Fee Scheme,"6,750.00"
3 Raymond Buildings,Davies Hugh ,10/04/2019,2,,,London North Complex Casework Unit,Non-ringfenced Programme DEL,Crown Court Graduated Fee Scheme,150
3 Raymond Buildings,Davies Hugh ,10/04/2019,3,,,London North Complex Casework Unit,Non-ringfenced Programme DEL,Crown Court Graduated Fee Scheme,"13,640.00"
3 Raymond Buildings,Davies Hugh ,10/04/2019,4,,,London North Complex Casework Unit,Non-ringfenced Programme DEL,Crown Court Graduated Fee Scheme,627.44
3 Raymond Buildings,Davies Hugh ,10/04/2019,5,,,London North Complex Casework Unit,Non-ringfenced Programme DEL,Crown Court Graduated Fee Scheme,150
3 Raymond Buildings,Davies Hugh ,10/04/2019,6,STANDARD,GB_VAT,London North Complex Casework Unit,Non-ringfenced Programme DEL,Crown Court Graduated Fee Scheme,"4,263.49"
Brownejacobson Nottingham,43044,29/01/2019,1,,,ERP Project: Programme,Non-ringfenced Programme DEL,Legal Consultancy Advice,"35,432.00"
Brownejacobson Nottingham,43044,29/01/2019,2,STANDARD,GB_VAT,ERP Project: Programme,Non-ringfenced Programme DEL,Legal Consultancy Advice,"7,086.40"
General Council Of The Bar,14214,22/03/2019,1,,,Practising Certificates,Non-ringfenced Programme DEL,Professional subscriptions and memberships,"229,131.00"
Softcat Plc Marlow,901150,10/04/2019,1,,,Legal Reference and ICT Licenses,Non-ringfenced Admin DEL,Intangibles asset purchase clearing Software licences,"27,271.20"
Softcat Plc Marlow,901150,10/04/2019,2,STANDARD,GB_VAT,Legal Reference and ICT Licenses,Non-ringfenced Admin DEL,Intangibles asset purchase clearing Software licences,"5,454.24"
Softcat Plc Marlow,901150,16/04/2019,1,,,Legal Reference and ICT Licenses,Non-ringfenced Admin DEL,Intangibles asset purchase clearing Software licences,"50,257.86"
Softcat Plc Marlow,901150,16/04/2019,2,STANDARD,GB_VAT,Legal Reference and ICT Licenses,Non-ringfenced Admin DEL,Intangibles asset purchase clearing Software licences,"10,051.57"
Edenred,7382,23/04/2019,1,,,Finance Operations,Non-ringfenced Admin DEL,Overseas Medical Other health care costs,"9,898.12"
Vuelio London,894172,15/03/2019,1,,,Press Office,Non-ringfenced Programme DEL,Other publicity and media costs,"22,500.00"
Vuelio London,894172,15/03/2019,2,STANDARD,GB_VAT,Press Office,Non-ringfenced Programme DEL,Other publicity and media costs,"4,500.00"
15 Winckley Square Chambers,Dyer Jacob ,17/04/2019,1,,,North West Complex Casework Unit,Non-ringfenced Programme DEL,Crown Court Graduated Fee Scheme,"10,830.00"
15 Winckley Square Chambers,Dyer Jacob ,17/04/2019,2,,,North West Complex Casework Unit,Non-ringfenced Programme DEL,Crown Court Graduated Fee Scheme,535.8
15 Winckley Square Chambers,Dyer Jacob ,17/04/2019,3,,,North West Complex Casework Unit,Non-ringfenced Programme DEL,Crown Court Graduated Fee Scheme,"14,200.00"
15 Winckley Square Chambers,Dyer Jacob ,17/04/2019,4,,,North West Complex Casework Unit,Non-ringfenced Programme DEL,Crown Court Graduated Fee Scheme,"1,624.50"
15 Winckley Square Chambers,Dyer Jacob ,17/04/2019,5,,,North West Complex Casework Unit,Non-ringfenced Programme DEL,Crown Court Graduated Fee Scheme,353.1
15 Winckley Square Chambers,Dyer Jacob ,17/04/2019,6,,,North West Complex Casework Unit,Non-ringfenced Programme DEL,Crown Court Graduated Fee Scheme,86.9
15 Winckley Square Chambers,Dyer Jacob ,17/04/2019,7,,,North West Complex Casework Unit,Non-ringfenced Programme DEL,Crown Court Graduated Fee Scheme,79
15 Winckley Square Chambers,Dyer Jacob ,17/04/2019,8,STANDARD,GB_VAT,North West Complex Casework Unit,Non-ringfenced Programme DEL,Crown Court Graduated Fee Scheme,"5,541.86"
2 Harcourt Buildings,Cavin Paul ,10/04/2019,1,,,South East Complex Casework Unit,Non-ringfenced Programme DEL,Crown Court Graduated Fee Scheme,"6,750.00"
2 Harcourt Buildings,Cavin Paul ,10/04/2019,2,,,South East Complex Casework Unit,Non-ringfenced Programme DEL,Crown Court Graduated Fee Scheme,975
2 Harcourt Buildings,Cavin Paul ,10/04/2019,3,,,South East Complex Casework Unit,Non-ringfenced Programme DEL,Crown Court Graduated Fee Scheme,"27,280.00"
2 Harcourt Buildings,Cavin Paul ,10/04/2019,4,,,South East Complex Casework Unit,Non-ringfenced Programme DEL,Crown Court Graduated Fee Scheme,675
2 Harcourt Buildings,Cavin Paul ,10/04/2019,5,,,South East Complex Casework Unit,Non-ringfenced Programme DEL,Crown Court Graduated Fee Scheme,577.53
2 Harcourt Buildings,Cavin Paul ,10/04/2019,6,,,South East Complex Casework Unit,Non-ringfenced Programme DEL,Crown Court Graduated Fee Scheme,127.6
2 Harcourt Buildings,Cavin Paul ,10/04/2019,7,,,South East Complex Casework Unit,Non-ringfenced Programme DEL,Crown Court Graduated Fee Scheme,656.25
2 Harcourt Buildings,Cavin Paul ,10/04/2019,8,,,South East Complex Casework Unit,Non-ringfenced Programme DEL,Crown Court Graduated Fee Scheme,532
2 Harcourt Buildings,Cavin Paul ,10/04/2019,9,STANDARD,GB_VAT,South East Complex Casework Unit,Non-ringfenced Programme DEL,Crown Court Graduated Fee Scheme,"7,514.68"
Farrar's Building,Lewis Paul ,24/04/2019,1,,,Cymru Wales Complex Casework Unit,Non-ringfenced Programme DEL,Crown Court Graduated Fee Scheme,"6,750.00"
Farrar's Building,Lewis Paul ,24/04/2019,2,,,Cymru Wales Complex Casework Unit,Non-ringfenced Programme DEL,Crown Court Graduated Fee Scheme,468.75
Farrar's Building,Lewis Paul ,24/04/2019,3,,,Cymru Wales Complex Casework Unit,Non-ringfenced Programme DEL,Crown Court Graduated Fee Scheme,"16,120.00"
Farrar's Building,Lewis Paul ,24/04/2019,4,,,Cymru Wales Complex Casework Unit,Non-ringfenced Programme DEL,Crown Court Graduated Fee Scheme,337.5
Farrar's Building,Lewis Paul ,24/04/2019,5,,,Cymru Wales Complex Casework Unit,Non-ringfenced Programme DEL,Crown Court Graduated Fee Scheme,406.41
Farrar's Building,Lewis Paul ,24/04/2019,6,,,Cymru Wales Complex Casework Unit,Non-ringfenced Programme DEL,Crown Court Graduated Fee Scheme,75
Farrar's Building,Lewis Paul ,24/04/2019,7,,,Cymru Wales Complex Casework Unit,Non-ringfenced Programme DEL,Crown Court Graduated Fee Scheme,157.5
Farrar's Building,Lewis Paul ,24/04/2019,8,STANDARD,GB_VAT,Cymru Wales Complex Casework Unit,Non-ringfenced Programme DEL,Crown Court Graduated Fee Scheme,"4,863.03"
CDW Limited London,704010,26/03/2019,1,,,Legal Reference and ICT Licenses,Non-ringfenced Admin DEL,Intangibles asset purchase clearing Software licences,"693,550.00"
CDW Limited London,704010,26/03/2019,2,STANDARD,GB_VAT,Legal Reference and ICT Licenses,Non-ringfenced Admin DEL,Intangibles asset purchase clearing Software licences,"138,710.00"
CDW Limited London,704010,29/03/2019,1,,,Legal Reference and ICT Licenses - Project,Non-ringfenced Programme DEL,IT services,"505,570.88"
CDW Limited London,704010,29/03/2019,2,STANDARD,GB_VAT,Legal Reference and ICT Licenses - Project,Non-ringfenced Programme DEL,IT services,"101,114.18"
CDW Limited London,704010,01/04/2019,1,,,Legal Reference and ICT Licenses,Non-ringfenced Admin DEL,Intangibles asset purchase clearing Software licences,"47,064.31"
CDW Limited London,704010,01/04/2019,2,STANDARD,GB_VAT,Legal Reference and ICT Licenses,Non-ringfenced Admin DEL,Intangibles asset purchase clearing Software licences,"9,412.86"
Senator International Ltd Lancashire,41674,12/04/2019,1,,,Estate and FM: Administration,Non-ringfenced Admin DEL,Office equipment and furniture Non capital purchases,"21,805.00"
Senator International Ltd Lancashire,41674,12/04/2019,,,,Estate and FM: Programme,Non-ringfenced Programme DEL,Office equipment and furniture Non capital purchases,"21,805.00"
Senator International Ltd Lancashire,41674,12/04/2019,2,STANDARD,GB_VAT,Estate and FM: Administration,Non-ringfenced Admin DEL,Office equipment and furniture Non capital purchases,"4,361.00"
Senator International Ltd Lancashire,41674,12/04/2019,,STANDARD,GB_VAT,Estate and FM: Programme,Non-ringfenced Programme DEL,Office equipment and furniture Non capital purchases,"4,361.00"
Cripps LLP Tunbridge Wells,7433,22/03/2019,1,,,Estate and FM: Programme,Non-ringfenced Programme DEL,New Works: non capital,"142,000.00"
Cripps LLP Tunbridge Wells,7433,22/03/2019,,,,Estate and FM: Programme,Non-ringfenced Programme DEL,Provisions Charge to DEL on utilisation Dilapidations,"142,000.00"
St Philips Chambers,Linehan Stephen ,11/04/2019,1,,,West Midlands Complex Casework Unit,Non-ringfenced Programme DEL,Crown Court Graduated Fee Scheme,"6,750.00"
St Philips Chambers,Linehan Stephen ,11/04/2019,2,,,West Midlands Complex Casework Unit,Non-ringfenced Programme DEL,Crown Court Graduated Fee Scheme,"16,120.00"
St Philips Chambers,Linehan Stephen ,11/04/2019,3,,,West Midlands Complex Casework Unit,Non-ringfenced Programme DEL,Crown Court Graduated Fee Scheme,"1,012.50"
St Philips Chambers,Linehan Stephen ,11/04/2019,4,,,West Midlands Complex Casework Unit,Non-ringfenced Programme DEL,Crown Court Graduated Fee Scheme,449.19
St Philips Chambers,Linehan Stephen ,11/04/2019,5,STANDARD,GB_VAT,West Midlands Complex Casework Unit,Non-ringfenced Programme DEL,Crown Court Graduated Fee Scheme,"4,866.34"
2 Harcourt Buildings,Nicholson Tom ,01/04/2019,1,,,Organised Crime London,Non-ringfenced Programme DEL,Crown Court Graduated Fee Scheme,"5,415.00"
2 Harcourt Buildings,Nicholson Tom ,01/04/2019,2,,,Organised Crime London,Non-ringfenced Programme DEL,Crown Court Graduated Fee Scheme,472.59
2 Harcourt Buildings,Nicholson Tom ,01/04/2019,3,,,Organised Crime London,Non-ringfenced Programme DEL,Crown Court Graduated Fee Scheme,"1,083.00"
2 Harcourt Buildings,Nicholson Tom ,01/04/2019,4,,,Organised Crime London,Non-ringfenced Programme DEL,Crown Court Graduated Fee Scheme,"13,920.00"
2 Harcourt Buildings,Nicholson Tom ,01/04/2019,5,,,Organised Crime London,Non-ringfenced Programme DEL,Crown Court Graduated Fee Scheme,281.4
2 Harcourt Buildings,Nicholson Tom ,01/04/2019,6,STANDARD,GB_VAT,Organised Crime London,Non-ringfenced Programme DEL,Crown Court Graduated Fee Scheme,"4,234.40"
